Workbook

Sheet Cover Page
D1: Add company logo
K2: Template version 25.1a (for incinerators) - 27/11/25
K4: Note that there is another version of this template available for co-incinerators
B8: Add photo
K13: Notes:
K14: This template may require adjustments by individual operators to meet specific reporting requirements as defined in the site Permit(s)
B29: Annual Performance Report 2025
B31: Permit EPR/BT7116IW
B33: Lakeside Energy from Waste Limited
B35: other name of facility (if applicable)
B37: Lakeside EFW Ltd
B39: Year: | C39: 2025
B41: Address: | C41: Lakeside EFW Ltd, Lakeside Road, Colnbrook, SL3 0FE
B43: Tel: | C43: 01753 688430
B45: Email: | C45: martin.rogers@lakesideewf.co.uk
B47: Prepared by: | C47: Martin Rogers | F47: Position: | G47: EHS Manager
B49: Approved by: | C49: Danny Coulston | F49: Position: | G49: Director of Operations
B51: Version: | C51: 1
B53: Issue Date:

Sheet Facility Info
A1: =+'Cover Page'!$B$29 -> Annual Performance Report 2025 | E1: =+'Cover Page'!$B$33 -> Lakeside Energy from Waste Limited
A3: Plant Description and Design | K3: Notes:
A5: Lakeside Energy from Waste (EfW) A joint venture project between two of the UK’s leading recycling and waste management companies; Grundon Waste Management and Viridor. The Lakeside EfW facility at Colnbrook near Slough has been operational since 2010. Using advanced technology, this plant is capable of processessing over 450,000 tonnes of residual waste per year, generating 37MW of power – enough to provide electricity to every household in Slough (56,000 homes). There is an education centre adjacent to Lakeside EfW, where schools and other groups can learn about sustainable waste management and energy from waste. | K5: Include summary of plant design, design capacity, no. of combustion lines, electrical and heat capacity and any other general information that describes the facility, its location and purpose
A20: Summary of Operational Processes and Procedures
A22: Lakeside operate an Integrated Management System (IMS) that is ISO 14001, ISO 45001, ISO 9001, ISO 22301 and ISO 50001 certified. It includes all the procedures for receiving and inspecting waste, auditing suppliers to ensure waste quality and compliance. Operations includes procedures for running the plant, showing how to start a line, run a line and shutdown a line. EHS includes procedures for monitoring and reporting compliance. Maintenance includes all the procedures for planned maintenance, unplanned maintenance, outages and preventative maintenance. | K22: Include summary of key processes and procedures such as (but not limited to); waste reception, control rooms, grate, bed and boiler, energy & heat generation, cooling systems, residue management, emission controls, health and safety systems, maintenance

Sheet Operational Data
A1: =+'Cover Page'!$B$29 -> Annual Performance Report 2025 | E1: =+'Cover Page'!$B$33 -> Lakeside Energy from Waste Limited
A3: Operational Data
A4: Plant Size: | B4: 468280 | D4: tonnes pa | J4: Notes:
A5: Nominal net thermal input: | C5: MWth | J5: * Export capacity = nominal generation capacity at the generator terminals minus nominal parasitic load. ** CHP and district heating plants only - put N/A if no heat export. *** Combusted tonnage = tonnes delivered in period + (tonnes in bunker at start of period – tonnes in bunker at end of period), or equivalent calculation depending on plant type **** Availability Definition: The availability of a line is to be calculated by the number of hours the line reported Continuously Monitored emission levels to the Regulator through the calendar year divided by the total number of hours in that year. The overall plant availability is calculated as the mean of all lines in the plant. For clarity this includes periods of abnormal operation. Rationale: The primary function of an Energy from Waste facility is the disposal of waste. It follows therefore that the availability of a plant is determined by the period of time a facility spends undertaking this activity. *****NCV of waste: This should be completed for all plants which have a boiler. Calculate using total thermal power produced by boiler/boiler efficiency, or other suitable calculation.
A6: Nominal electrical export capacity*: | C6: MWe
A7: Nominal heat export capacity**: | C7: MWth
A8: No. of combustion lines: | B8: 2 | C8: No. of steam turbines: | E8: 1
A10: Waste types received | B10: Unit | C10: Q1 | D10: Q2 | E10: Q3 | F10: Q4 | G10: Year Total | H10: %
A11: Household / Local Authority | B11: tonnes | C11: 62334 | D11: 59714 | E11: 61372 | F11: 66301 | G11: =SUM(C11:F11) -> 249721 | H11: =IF(G11>0,G11/$G$21,"-") -> 0.6000009611
A12: Commercial & Industrial | C12: 40423 | D12: 38579 | E12: 39956 | F12: 43098 | G12: =SUM(C12:F12) -> 162056 | H12: 0.3893695594
A13: Hazardous | E13: 20 | F13: 80 | G13: 100 | H13: 0.0002402685241
A14: Clinical | C14: 1133 | D14: 1230 | E14: 938 | F14: 1023 | G14: 4324 | H14: 0.01038921098
A15: Waste wood (biomass) | G15: 0 | H15: -
A16: Refuse Derived Fuel (incl. SRF) - H'hold/LA | G16: =SUM(C16:F16) -> 0 | H16: -
A17: Refuse Derived Fuel (incl. SRF) - C&I | G17: 0 | H17: -
A18: Other [Please specify] | G18: 0 | H18: -
A19: Other [Please specify] | G19: 0 | H19: -
A20: Other [Please specify] | G20: 0 | H20: -
A21: Total waste received | C21: =SUM(C11:C20) -> 103890 | D21: =SUM(D11:D20) -> 99523 | E21: =SUM(E11:E20) -> 102286 | F21: =SUM(F11:F20) -> 110502 | G21: 416201
A22: Rejected Waste | F22: 4.7 | G22: =SUM(C22:F22) -> 4.7 | H22: =IF(G22>0,G22/$G$21,"-") -> 1.129262063e-05
A23: Unprocessed waste transferred out | G23: =SUM(C23:F23) -> 0 | H23: =IF(G23>0,G23/$G$21,"-") -> -
A24: Total waste combusted *** | C24: 101210 | D24: 101467 | E24: 99685 | F24: 109696 | G24: =SUM(C24:F24) -> 412058
A26: Energy Usage / Export | B26: Unit | C26: Q1 | D26: Q2 | E26: Q3 | F26: Q4 | G26: Year Total | H26: KWh/te | J26: Password for protected cells A password has been set to prevent accidental editing of cells with formulae. If you still need to make an edit for some reason then the password = 1234
A27: Power generated at generator terminals | B27: MWh | C27: 78565 | D27: 78337 | E27: 75070 | F27: 81186 | G27: =SUM(C27:F27) -> 313158 | H27: =IF(G27>0,G27*1000/$G$24,"-") -> 759.9852448
A28: Power exported to grid and other external user(s) | C28: 71237 | D28: 70634 | E28: 67302 | F28: 73062 | G28: =SUM(C28:F28) -> 282235 | H28: =IF(G28>0,G28*1000/$G$24,"-") -> 684.9399842
A29: Power imported | C29: 0.065 | D29: 0.039 | E29: 0.199 | F29: 0 | G29: 0.303 | H29: =IF(G29>0,G29*1000/$G$24,"-") -> 0.0007353333754
A30: Indicative parasitic load | B30: % | C30: =IF(C27>0,(C27-C28)/C27,"-") -> 0.09327308598 | D30: =IF(D27>0,(D27-D28)/D27,"-") -> 0.09833156746 | E30: 0.103476755 | F30: 0.1000665139 | G30: =IF(G27>0,1-G28/(G27+G29),"-") -> 0.09874655311
A31: Thermal Energy Exported ** | G31: =SUM(C31:F31) -> 0 | H31: =IF(G31>0,G31*1000/$G$24,"-") -> -
A32: R1 value (if applicable) | B32: R1 | C32: - | D32: - | E32: - | F32: -
A34: Waste Disposal & Recovery | B34: Unit | C34: Q1 | D34: Q2 | E34: Q3 | F34: Q4 | G34: Year Total | H34: % inputs
A35: APC Residues - produced | B35: tonnes | C35: 3337 | D35: 3439 | E35: 2691 | F35: 3515 | G35: =SUM(C35:F35) -> 12982 | H35: =IF(G35>0,G35/$G$24,"-") -> 0.03150527353
A36: IBA - produced | C36: 19689 | D36: 19542 | E36: 18627 | F36: 20600 | G36: 78458 | H36: =IF(G36>0,G36/$G$24,"-") -> 0.1904052342
A37: Metals recycling | C37: 942 | D37: 933 | E37: 1105 | F37: 947 | G37: =SUM(C37:F37) -> 3927 | H37: 0.009530211766
A38: Other | C38: 0 | D38: 0 | E38: 0 | F38: 0 | G38: =SUM(C38:F38) -> 0 | H38: -
A39: Other | C39: 0 | D39: 0 | E39: 0 | F39: 0 | G39: 0 | H39: -
A40: Other | C40: 0 | D40: 0 | E40: 0 | F40: 0 | G40: 0 | H40: -
A42: Raw Material Usage | B42: Unit | C42: Q1 | D42: Q2 | E42: Q3 | F42: Q4 | G42: Year Total | H42: Qty./te
A43: Mains Water | B43: m3 | C43: 20284 | D43: 22213 | E43: 16706 | F43: 21500 | G43: =SUM(C43:F43) -> 80703 | H43: =IF(G43>0,G43/$G$24,"-") -> 0.1958534964
A44: Other Water | B44: ltrs | G44: 0 | H44: =IF(G44>0,G44/$G$24,"-") -> -
A45: Ammonia | B45: kgs | G45: 0 | H45: -
A46: Urea | B46: kgs | C46: 9496 | D46: 8628 | E46: 3507 | F46: 5601 | G46: =SUM(C46:F46) -> 27232 | H46: 0.06608778376
A47: Activated Carbon | B47: kgs | C47: 44479 | D47: 42702 | E47: 42986 | F47: 46522 | G47: 176689 | H47: 0.4287964316
A48: Lime / hydrated lime | B48: tonnes | C48: 1387 | D48: 1422 | E48: 1390 | F48: 1404 | G48: 5603 | H48: 0.01359760034
A49: Fuel oil | B49: ltrs | C49: 55714 | D49: 118009 | E49: 43931 | F49: 2759 | G49: 220413 | H49: 0.5349077072
A50: Gas | B50: m3 | G50: 0 | H50: -
A51: Other | G51: 0 | H51: -
A53: Summary | B53: Line/Unit | C53: Q1 | D53: Q2 | E53: Q3 | F53: Q4 | G53: Year Total | I53: Hrs in year
A54: Availability of waste combustion by line, hrs **** | B54: 1 | C54: 1990 | D54: 2116 | E54: 2072 | F54: 2208 | G54: =SUM(C54:F54) -> 8386 | H54: =+G54/$I$54 -> 0.9573059361 | I54: 8760 | J54: Change this figure to 8784 in a leap year
B55: 2 | C55: 2126 | D55: 2121 | E55: 2075 | F55: 2208 | G55: 8530 | H55: =+G55/$I$54 -> 0.9737442922
B56: 3 | G56: 0 | H56: 0
B57: 4 | G57: 0 | H57: 0
B58: 5 | G58: =SUM(C58:F58) -> 0 | H58: 0
A59: Hours of turbine operations, hrs | B59: 1 | C59: 2130 | D59: 2163 | E59: 2147 | F59: 2208 | G59: 8648 | H59: 0.9872146119
A60: Hours of turbine operations, hrs | B60: 2 | G60: 0 | H60: 0
A61: Hours of heat / steam export** | B61: hours | G61: 0 | H61: =IF(B61>0,G60/I54,"n/a") -> 0
A62: Net calorific value of waste***** | B62: MJ/kg | C62: 9981 | D62: 10356 | E62: 10087 | F62: 10362
A63: Abnormal operation events | B63: qty. | C63: 1 | E63: 1 | F63: 1 | G63: 3 | H63: =IF(G63>0,"yes","no") -> yes
A64: Abnormal operation duration | B64: hours | C64: 4.5 | E64: 0.5 | F64: 0.5 | G64: 5.5 | H64: =+(G64)/I54 -> 0.0006278538813
A65: Permit Breaches | B65: qty. | E65: 1 | F65: 1 | G65: 2 | H65: =IF(G65>0,"yes","no") -> yes

Sheet Operational Summary
A1: =+'Cover Page'!$B$29 -> Annual Performance Report 2025 | E1: =+'Cover Page'!$B$33 -> Lakeside Energy from Waste Limited
A3: Summary of Plant Operations and Maintenance during the reporting year | K3: Notes:
A5: The total downtime for the lines and turbine are as follows; A1 374.8 hours, A2 229.65 hours and the turbine 111.6 hours. The reasons are listed below. New inverters were fitted to the ID fans, which were energy efficient. Following the install, there were a number of trips to each line that occured. This was traced to a protection issue and an issue with the UPS supply. PLC faults which were intermitant and therefore difficult to trace. The turbine tripped due to a faulty temperature probe causing both lines to ESD and an essentials board problem caused further issues. During the mini outages opportunities were taken to repair grates and fix baghouse issues and any other issues with the plant that could only be carried out with a cold plant. | K5: Include summary of key operational and/or maintenance activity undertaken in the year, such as any major component upgrades and/or replacements
A29: =+'Cover Page'!C39 -> 2025 | B29: Plant shut-downs
A30: Start date | B30: End date | C30: Reason for shut-down | K30: Provide a very brief reason for plant shut-down e.g. "Shut-down prior to major outage"; "Emergency shut-down due to boiler tube leak". All emergency shut-downs must be listed (irrespective of whether or not they were required to be reported to the EA). There is no need to include periods of hot-standby here (e.g. to clear feed chute hopper blockages). For clinical waste incinerators which require regular shut-downs for boiler cleaning, there is no need to record these here (only those prior to major outages, and emergency shut-downs).
A31: 2025-01-05 | B31: 2025-01-05 | C31: A2 Fault with crane, prohibition on 0.2 hours
A32: 2025-01-20 | B32: 2025-01-26 | C32: A1 Baghouse issues on A1 139.3 hours
A33: 2025-02-05 | B33: 2025-02-06 | C33: A2 ID fan trip and investigation 2.35 hours
A34: 2025-02-14 | B34: 2025-02-14 | C34: A1 2.2 hours ID fan investigation
A35: 2025-02-28 | B35: 2025-02-28 | C35: A2 ID fan trip 0.6 hours
A36: 2025-03-02 | B36: 2025-03-02 | C36: A2 ID fan trip 0.7 hours
A37: 2025-03-30 | B37: 2025-04-02 | C37: A1 ID fan UPS fault 60.7 hours
A38: 2025-03-30 | B38: 2025-04-01 | C38: A2 ID fan UPS fault 46.4 hours
A39: 2025-03-30 | B39: 2025-04-01 | C39: Turbine trip IDF UPS fault both lines and turbine tripped
A40: 2025-04-23 | B40: 2025-04-24 | C40: A2 hopper blockage 28.3 hours
A41: 2025-04-28 | B41: 2025-04-29 | C41: A2 Incinerator card fault 0.9 hours
A42: 2025-05-09 | B42: 2025-05-10 | C42: A1 Burning grate failure 36.2 hours
A43: 2025-05-27 | B43: 2025-05-28 | C43: A2 Unexplained ESD
A44: 2025-05-29 | B44: 2025-05-29 | C44: A2 Unexplained ESD
A45: 2025-06-11 | B45: 2025-06-11 | C45: A2 PLC replacement 1.5 Hours
A46: 2025-06-12 | B46: 2025-06-12 | C46: A2 temperature dropped below 850 °C
A47: 2025-06-17 | B47: 2025-06-17 | C47: A2 Single side feed trial 0.5 hours
A48: 2025-06-30 | B48: 2025-07-05 | C48: A2 Mini outage crane and baghouse repairs
A49: 2025-07-06 | B49: 2025-07-06 | C49: A2 Crane repairs 1.5 hours
A50: 2025-07-11 | B50: 2025-07-12 | C50: A2 ID fan trip 1 hour
A51: 2025-07-21 | B51: 2025-07-26 | C51: A1 Grate bar replacement 120.2 hours
A52: 2025-07-30 | B52: 2025-07-30 | C52: A1 ESD due to outside grid problem
A53: 2025-08-13 | B53: 2025-08-13 | C53: A1 tripped due to bypass station fault following turbine trip. 0.1 Hours
A54: 2025-08-13 | B54: 2025-08-13 | C54: A2 turbine trip causing back pressure and line trip
A55: 2025-08-13 | B55: 2025-08-15 | C55: Turbine trip faulty generator temp probe 48.7 hours
A56: 2025-08-29 | B56: 2025-08-29 | C56: A1 trip due to essentials board trip 10.2 hours
A57: 2025-08-29 | B57: 2025-08-29 | C57: A2 trip due to essentials board trip 13.6 hours
A58: 2025-08-29 | B58: 2025-08-29 | C58: Turbine trip faulty essentials board 12.4 hours
A59: 2025-09-23 | B59: 2025-09-24 | C59: A1 trip waste umbilical shorted out, unable to feed waste 5.2 hours

Sheet Perf. Form 1
A1: =+'Cover Page'!C39 -> 2025 | B1: Annual Reporting Performance Form 1
A3: =+'Cover Page'!B31 -> Permit EPR/BT7116IW | F3: Operator: | G3: =+'Cover Page'!B37 -> Lakeside EFW Ltd
A4: Facility: | B4: =+'Cover Page'!B33:I33 -> Lakeside Energy from Waste Limited | F4: Form: | G4: Performance 1
A6: Reporting Period from: | D6: 1st January 2025 | F6: to: | G6: 31st December 2025
A8: =+A1 -> 2025 | B8: Annual Reporting of Waste Disposal and Recovery
A9: Waste Description | C9: Disposal Route(s) | E9: Disposal Tonnes | G9: Recovery Tonnes | I9: % / tonne of waste incinerated
A10: 1) Hazardous Wastes
A11: APC Residues | G11: ='Operational Data'!G35 -> 12982 | I11: =IF((E11+G11)>0,(E11+G11)/'Operational Data'!$G$24, "-") -> 0.03150527353
A12: IBA | I12: =IF((E12+G12)>0,(E12+G12)/'Operational Data'!$G$24, "-") -> -
I13: =IF((E13+G13)>0,(E13+G13)/'Operational Data'!$G$24, "-") -> -
I14: =IF((E14+G14)>0,(E14+G14)/'Operational Data'!$G$24, "-") -> -
A15: Total Hazardous Waste | E15: =SUM(E11:F14) -> 0 | G15: =SUM(G11:H14) -> 12982 | I15: =IF((E15+G15)>0,(E15+G15)/'Operational Data'!$G$24, "-") -> 0.03150527353
A17: 2) Non-Hazardous Wastes
A18: IBA | G18: ='Operational Data'!G36 -> 78458 | I18: =IF((E18+G18)>0,(E18+G18)/'Operational Data'!$G$24, "-") -> 0.1904052342
A19: Ferrous Metal | G19: ='Operational Data'!G37 -> 3927 | I19: =IF((E19+G19)>0,(E19+G19)/'Operational Data'!$G$24, "-") -> 0.009530211766
A20: Process Water | I20: =IF((E20+G20)>0,(E20+G20)/'Operational Data'!$G$24, "-") -> -
I21: =IF((E21+G21)>0,(E21+G21)/'Operational Data'!$G$24, "-") -> -
I22: =IF((E22+G22)>0,(E22+G22)/'Operational Data'!$G$24, "-") -> -
A23: Total Non-Hazardous Waste | E23: =SUM(E18:F22) -> 0 | G23: =SUM(G18:H22) -> 82385 | I23: =IF((E23+G23)>0,(E23+G23)/'Operational Data'!$G$24, "-") -> 0.199935446
A24: TOTAL WASTE | E24: =+E23+E15 -> 0 | G24: =+G23+G15 -> 95367 | I24: =IF((E24+G24)>0,(E24+G24)/'Operational Data'!$G$24, "-") -> 0.2314407195
A26: Operator’s comments :
A31: =+A1 -> 2025 | B31: Annual Reporting of Water and Other Raw Material Usage
A32: Raw Material | E32: Usage | G32: Unit | H32: Specific Usage | J32: Unit
A33: Mains Water | E33: =+'Operational Data'!G43 -> 80703 | G33: m3 | H33: =IF(E33>0,E33/'Operational Data'!$G$24,"-") -> 0.1958534964 | J33: m3/te
A34: Total Water | E34: =+'Operational Data'!G44+'Operational Data'!G43 -> 80703 | G34: m3 | H34: =IF(E34>0,E34/'Operational Data'!$G$24,"-") -> 0.1958534964 | J34: m3/te
A35: Urea | E35: =+'Operational Data'!G46 -> 27232 | G35: kg | H35: =IF(E35>0,E35/'Operational Data'!$G$24,"-") -> 0.06608778376 | J35: kg/te
A36: Activated Carbon | E36: =+'Operational Data'!G47 -> 176689 | G36: kg | H36: =IF(E36>0,E36/'Operational Data'!$G$24,"-") -> 0.4287964316 | J36: kg/te
A37: Lime | E37: =+'Operational Data'!G48*1000 -> 5603000 | G37: kg | H37: =IF(E37>0,E37/'Operational Data'!$G$24,"-") -> 13.59760034 | J37: kg/te
A39: Operator’s comments :
A43: =+A31 -> 2025 | B43: Annual Reporting of other performance indicators
A44: Parameter | C44: Results by Line
C45: A1 | D45: A2 | E45: A3 | F45: A4 | G45: A5 | I45: Turbine 1 | J45: Turbine 2
A46: Operating hours for the year, hours | C46: 8385.2 | D46: 8530.4 | I46: 8648.4
A47: Number of periods of abnormal operation, qty. | C47: 3 | D47: 0
A48: Cumulative hours of abnormal operation for this year, hours | C48: 16.5 | D48: 0
A50: Operator’s comments :
A51: There were 3 dust exceedences from failed filter bags. Counting the half hour averages where the daily limit was exceeded comes to 16.5 hours. Counting the half hour periods where the half hour limit was exceeded comes to 5 hours of abnormal operation.
A55: Signed: | G55: Date: | H55: 2025-01-08

Sheet Energy Form 1
A1: =+'Cover Page'!C39 -> 2025 | B1: Annual Reporting of Energy Usage/Export
A3: =+'Cover Page'!B31 -> Permit EPR/BT7116IW | F3: Operator: | G3: =+'Cover Page'!B37 -> Lakeside EFW Ltd
A5: Facility: | B5: =+'Cover Page'!B33:I33 -> Lakeside Energy from Waste Limited | F5: Form: | G5: Energy 1
A7: Reporting Period from: | D7: =+'Perf. Form 1'!D6:E6 -> 1st January 2025 | F7: to: | G7: =+'Perf. Form 1'!G6:H6 -> 31st December 2025
A9: Energy Source | D9: Energy Usage | F9: Unit | G9: Specific Usage (KWh/tonne incinerated
A10: Electricity Produced | D10: =+'Operational Data'!G27 -> 313158 | F10: MWh | G10: =+'Operational Data'!H27 -> 759.9852448
A11: Electricity Imported | D11: =+'Operational Data'!G29 -> 0.303 | F11: MWh | G11: =+'Operational Data'!H29 -> 0.0007353333754
A12: Electricity Exported | D12: =+'Operational Data'!G28 -> 282235 | F12: MWh | G12: =+'Operational Data'!H28 -> 684.9399842
A13: Gas Oil | D13: ='Operational Data'!G49/1000/0.83 -> 265.5578313 | F13: tonnes
A14: Steam/hot water exported | D14: =+'Operational Data'!G31 -> 0 | F14: GWh | G14: =+'Operational Data'!H31 -> -
A18: Operator’s comments :
A29: Signed: | G29: Date: | H29: 2026-01-06

Sheet Permit Compliance
A1: =+'Cover Page'!$B$29 -> Annual Performance Report 2025 | E1: =+'Cover Page'!$B$33 -> Lakeside Energy from Waste Limited
A3: Summary of Permit Compliance
A5: Compliance with permit limits for continuously monitored pollutants
A7: The plant met its emission limits as shown in the table below:
A8: Substance | C8: Percentage time compliant during operationNote 1 | L8: Notes:
C9: Half-hourly limit | F9: Daily limit | L9: Note 1: Please report to 2 decimal places, i.e. xx.xx% Note 2: Please enter into this table any permit non-compliances that the EA has given a CCS score for. Please also enter any other non-compliances which you have notified to the EA (e.g. ELV exceedances) but which have not yet been assessed by the EA. There is no need to enter any notifications which were subsequently assessed by the EA not to be permit breaches. Note 3: Please enter information here (rather than just referencing the notifications that were sent to the EA) including where relevant the incineration line reference, pollutant and value of the measured result for any ELV exceedances.
A10: Particulates | C10: 0.9999 | F10: 0.9945
A11: Oxides of nitrogen | C11: 1 | F11: 1
A12: Sulphur dioxide | C12: 1 | F12: 0.9999
A13: Carbon monoxide | C13: 100% 95% of 10-min averages | F13: 100% 95% of 10-min averages
A14: Total organic carbon | C14: 1 | F14: 1
A15: Hydrogen chloride | C15: 1 | F15: 0.9945
A16: Hydrogen fluoride | C16: 1 | F16: 1
A19: Summary of non-compliances under the permit Note 2
A20: Date | B20: Summary of non-compliance Note 3 | D20: Reason | G20: Measures taken to prevent reoccurrence | H20: CCS score if applicable*
H21: Impact | I21: Root cause
A22: 2025-01-18 | B22: Dust daily limit A1 21.36 mg/m3 | D22: Failed bag | G22: Bag capped
A23: 2025-08-20 | B23: HCl A2 daily limit 9.91 mg/m3 | D23: Lime usage experiment | G23: Returned to original settings
A24: 2025-09-03 | B24: Dust daily limit A1 5.18 mg/m3 | D24: 2 failed bags | G24: Bags capped
A25: 2025-11-08 | B25: SO2 half hour avg 214.32 mg/m3 | D25: Lime increased, load reduced | G25: SO2 containing waste
A26: 2025-12-06 | B26: Dust half hour avg 31.66 mg/m3 | D26: Failed bag | G26: Bag capped
A29: Summary of any complaints received and actions to taken to resolve them.
A30: Date | B30: Summary of complaint [including Line/Reference] | E30: Reason (including whether substantiated by the operator or the EA) | H30: Measures taken to prevent reoccurrence

Sheet Improvements
A1: =+'Cover Page'!$B$29 -> Annual Performance Report 2025 | E1: =+'Cover Page'!$B$33 -> Lakeside Energy from Waste Limited
A3: Summary of Plant Improvements
A5: Summary of any efficiency improvements that have been completed within the year.
A6: Installation of two VSD (Variable Speed Drive) inverters on each of the Induced Drive fans with projected energy savings of 3.9 %. Reduced in-house energy & CO2 Generation – improved operating efficiency of the plant.
A16: Summary of any permit improvement conditions that have been completed within the year and the resulting environmental benefits.
A17: Lakeside were issued a permit to trial the incineration of insulation briquettes waste containing TCPP (Tris(2-chloroisopropyl) phosphate). At a concentration to render the material hazardous. The formulation was changed, so the material could go for normal waste incineration. The briquettes incinerated without causing any issues to the plant or the emissions. Lakeside applied and was issued with a permit for the voluntary ETS (Emissions Trading Scheme). This commences in 2026 requiring Lakeside to report it's fossil fuel carbon emissions. Two Amesa B C14 instruments were fitted to each line enabling Lakeside to measure the biogenic carbon content of the waste.
A27: Summary of any changes to the plant or operating techniques which required a variation to the permit and a summary of the resulting environmental impact.
A38: Summary of any other improvements made to the plant or planned to be made and a summary of the resulting environmental benefits.
A39: VSD inverors will be installed on other equipment in the plant.

Sheet Public Liasion
A1: =+'Cover Page'!$B$29 -> Annual Performance Report 2025 | E1: =+'Cover Page'!$B$33 -> Lakeside Energy from Waste Limited
A3: Details of Public & Stakeholder Liaison
A5: Summary of events held during the reporting year.
A6: Date | C6: Description
A16: List of events planned for next year
A17: Date | C17: Description
A29: If you wish to be involved in the public liaison programme, please contact _________________

Sheet CO2 N2O
A1: =+'Cover Page'!$B$29 -> Annual Performance Report 2025 | C1: =+'Cover Page'!$B$33 -> Lakeside Energy from Waste Limited
A3: Carbon dioxide emissions and biogenic content of waste inputs | F3: Notes:
A5: Carbon dioxide emissions (all types of plant)
B6: Annual mass of carbon dioxide released | C6: tonnes | D6: 425730
B7: Annual mass of carbon dioxide released per tonne of waste burned | C7: t CO2 / t waste | D7: =D6/'Operational Data'!G24 -> 1.033179795 | F7: Note 1: All permits require operators to continuously monitor CO2 to EN14181 and flow to BS EN 16911-2 (unless otherwise agreed in writing). Operators must therefore use the results from these instruments to calculate their annual CO2 emissions. Where an operator does not have a flow meter calibrated to BS EN 16911-2, the averaged flow measurement from that year's periodic monitoring can be used instead. If the plant does not have calibrated CO2 CEMS, a suitably justified emissions factor can be used.
B8: Annual mass of carbon dioxide released per MWh of energy exported | C8: t CO2 / MWh export | D8: =D6/'Operational Data'!G28 -> 1.508423831
B9: Description of how annual carbon dioxide mass emission has been calculated. See Note 1 | C9: CO2 instruments (eN14181) calibrated QAL 2 function and calibrated flow meter (EN 16911-2) calculate CO2 in tonnes in real time.
A10: Nitrous oxide emissions (only plants which use ammonia or urea to abate NOx emissions)
B11: Annual mass emissions of nitrous oxide | C11: tonnes N2O | D11: 2.71
B12: Description of how annual nitrous oxide mass emission has been calculated See Note 2 | C12: N2O instruments (eN14181) calibrated QAL 2 function and calibrated flow meter (EN 16911-2) calculate CO2 in tonnes in real time. | F12: Note 2: All permits require operators to continuously monitor N2O to EN14181 and flow to BS EN 16911-2, unless otherwise agreed in writing. Operators must therefore use the results from these instruments to calculate their annual N2O emissions. Where an operator does not have a flow meter calibrated to BS EN 16911-2, the averaged flow measurement from periodic monitoring can be used instead. If the plant does not have calibrated N2O CEMS, data from periodic monitoring or a suitably justified emissions factor can be used instead.
A13: Total annual carbon dioxide + nitrous oxide emissions. See Note 3. | C13: tonnes CO2e | D13: =(D11*265)+D6 -> 426448.15 | F13: Note 3: Total annual carbon dioxide and nitrous oxide emissions reported as carbon dioxide equivalent where 1 tonne nitrous oxide is equivalent to 265 tonnes carbon dioxide.
A14: Biogenic CO2 emissions (See Note 4) | F14: Note 4: Only plants combusting residual municipal waste, refuse derived fuel or solid recovered fuel need complete this section.
B15: Percentage of total carbon dioxide emissions arising from biogenic waste | C15: % | D15: 0.5494
B16: No. of measurements undertaken | C16: Number | D16: 24
B17: Description of how percentage biogenic carbon dioxide emissions have been measured or calculated. See Note 5 | C17: C14 Sampler on each line, used with the cartridges changed and sent for analyses monthly. | F17: Note 5: The results from C14 sampling should be used if this is carried out at the plant (either via an installed sampler or from spot samples). Otherwise, as an approximation (and in lieu of any more accurate metrics which may be developed in future), the measured or estimated biogenic fraction by net calorific value (see Note 6) can be assumed to be the same as the biogenic CO2 fraction of the total CO2 emissions from the plant.
A18: Biogenic fraction of waste feedstock (See Note 4)
B19: Yearly average biogenic percentage of the waste by net calorific value (NCV) | C19: %
B20: Description of how biogenic percentage (by NCV) has been calculated or estimated. See Note 6 | F20: Note 6: If C14 sampling is carried out at the plant, the methodology set out in the embedded document entitled "Renewable Energy Association Energy Content of Fuels - Description of Method" embedded below can be used to calculate the biogenic percentage by net calorific value. Otherwise, data from waste sampling or BIOMA software can be used; or if none of these are available, an estimated figure with justification or a figure assumed on the basis of up-to-date industry data can be used.
B21: Yearly average biogenic percentage of the waste by mass | C21: %
B22: If waste sampling undertaken, no. of samples used to ascertain average biogenic percentages above | C22: Number
B23: Description of how biogenic percentage (by mass) has been calculated or estimated. See Note 7 | F23: Note 7: Where available, data from waste sampling should be used; otherwise, an estimated figure with justification can be used, or a figure assumed on the basis of up-to-date industry data.
B25: Comments:

Sheet Residues
A1: =+'Cover Page'!$B$29 -> Annual Performance Report 2025 | E1: =+'Cover Page'!$B$33 -> Lakeside Energy from Waste Limited
A3: Summary of Residue Handling for the reporting year
A5: The IBA follows the ESA (Environmental Services Association) sampling and testing protocol and is sampled twice a month, so 24 times a year to determine whether it is hazardous. A full 15 property hazard assessment is annually on IBA in accordance with the EA's WM3 guidance, v 1.2GB (EA 2021), supported by additional studies completed for ESA for in vitro irritancy testing and metal speciation. Routine hazard assessments are restricted to HP4 (irritant), HP7 (carcinogenic), HP8 (corrosive) and HP14 (ecotoxic). Lakeside stand at zero samples hazardous on a rolling 24 sample assessment. Compliance monitoring of IBA and APC is carried out 4 times a year, once per quarter. | K5: Include in here a summary of residue handling regimes and destinations
A28: Residue Quality Monitoring Requirements
A30: Summary of monitoring undertaken and compliance
A31: IBA and APC were compliant with the permit. The IBA has zero hazardous samples on a rolling 24 sample assessment.
A38: Commentary on any specific events
A39: Date & Event | C39: Description
A52: Residue Quality Monitoring Results
A53: Parameter (unit) | C53: Limit* | D53: Normal Operation
D54: Bottom ash | F54: APC Residues
A55: Loss on Ignition (average %) | C55: <5%
A56: Total Organic Carbon (average %) | C56: <3% | D56: 0.55
A57: No. of Assessments Undertaken | C57: --- | D57: 24 | F57: 4
A58: No. of Hazardous Results | C58: --- | D58: 0
A59: * The permit will specify a limit of either 5% loss on ignition or 3% total organic carbon. If both are measured anyway, please enter the results here, even where the limit does not apply.
A61: Comments :
A62: IBA continues to be well below the TOC limit of 3% showing good burnout of the waste.

Sheet Water
A1: =+'Cover Page'!$B$29 -> Annual Performance Report 2025 | E1: =+'Cover Page'!$B$33 -> Lakeside Energy from Waste Limited
A3: Emissions to Water
A5: Summary of monitoring undertaken and compliance
A6: No trade effluent discharged to sewer.
A13: Commentary on any specific events
A14: Date & Event | C14: Description
A22: Emissions to Water / Sewer
A23: Parameter | D23: Monitoring Frequency | F23: Limit | G23: Target | H23: Max. | I23: Average

Sheet Air (periodic)
A1: =+'Cover Page'!$B$29 -> Annual Performance Report 2025 | E1: =+'Cover Page'!$B$33 -> Lakeside Energy from Waste Limited
A3: Emissions to Air (periodically monitored)
A5: Summary of monitoring undertaken, standards used and compliance | K5: Notes:
A6: HF CEN TS 17340, Cd Th & Metals BS EN 14385, Hg BS EN 13211, Dioxins/ Furans (I-TEQ) BS EN 1948 Parts 1 - 3, PAHs BS ISO 11338-1 and BS ISO 1138-2 | K6: Template may require adjustment for any bespoke monitoring requirements of permit - please also check that all default ELV values, reference periods and the stated oxygen reference value match those for your plant, and edit if necessary!
A9: Results of emissions to air that are periodically monitored - oxygen reference 11%
A10: Substance | C10: Ref. Period | D10: Emission Limit Value | F10: Average | K10: User to add additional tables as necessary, depending on whether quarterly or bi-annual reporting is required for the compliance year
F11: A1 | G11: A2 | H11: A3 | I11: A4 | J11: A5
A12: Hydrogen fluoride | C12: 1 hr | D12: 1 mg/m3 | F12: 0.12 | G12: 0.12
A13: Cd and Tl and their compounds | C13: 0.5-8hrs | D13: 0.02 mg/m3 | F13: 0.00085 | G13: 0.0008
A14: Hg and its compounds | C14: 0.5-8hrs | D14: 0.02 mg/m3 | F14: 0.00365 | G14: 0.00525
A15: Sb, As, Pb, Cr, Co, Cu, Mn, Ni, V and their compounds | C15: 0.5-8hrs | D15: 0.3 mg/m3 | F15: 0.042 | G15: 0.0695
A16: Dioxins & Furans (I-TEQ) | C16: 6-8hrs | D16: 0.06 ng/m3 | F16: 0.0087 | G16: 0.0052
A17: PCBs (WHO-TEQ Humans / Mammals) | C17: 6-8hrs | D17: None set ng/m3 | F17: 0.0016 | G17: 0.00157
A18: PCBs (WHO-TEQ Fish) | C18: 6-8hrs | D18: None set ng/m3 | F18: 0.0001 | G18: 6e-05
A19: PCBs (WHO-TEQ Birds) | C19: 6-8hrs | D19: None set ng/m3 | F19: 0.0031 | G19: 0.00172
A20: Dioxins & Furans (WHO-TEQ Humans / Mammals) | C20: 6-8hrs | D20: None set ng/m3 | F20: 0.0086 | G20: 0.0052
A21: Dioxins & Furans (WHO-TEQ Fish) | C21: 6-8hrs | D21: None set ng/m3 | F21: 0.0095 | G21: 0.00555
A22: Dioxins & Furans (WHO-TEQ Birds) | C22: 6-8hrs | D22: None set ng/m3 | F22: 0.0158 | G22: 0.00885
A23: Anthanthrene | C23: 6-8hrs | D23: None set µg/m3 | F23: <0.0011 | G23: <0.0011
A24: Benzo(a)anthracene | C24: 6-8hrs | D24: None set µg/m3 | F24: <0.0011 | G24: <0.0011
A25: Benzo(a)pyrene | C25: 6-8hrs | D25: None set µg/m3 | F25: <0.0011 | G25: <0.0011
A26: Benzo(b)fluoranthene | C26: 6-8hrs | D26: None set µg/m3 | F26: <0.0011 | G26: <0.0011
A27: Benzo(b)naptho(2,1-d) thiophene | C27: 6-8hrs | D27: None set µg/m3 | F27: <0.0011 | G27: <0.0011
A28: Benzo(c)phenanthrene | C28: 6-8hrs | D28: None set µg/m3 | F28: <0.0011 | G28: <0.0011
A29: Benzo(ghi)perylene | C29: 6-8hrs | D29: None set µg/m3 | F29: <0.0011 | G29: <0.0011
A30: Benzo(k)fluoranthene | C30: 6-8hrs | D30: None set µg/m3 | F30: <0.0011 | G30: <0.0011
A31: Cholanthrene | C31: 6-8hrs | D31: None set µg/m3 | F31: <0.0011 | G31: <0.0011
A32: Chrysene | C32: 6-8hrs | D32: None set µg/m3 | F32: <0.0011 | G32: <0.0011
A33: Cyclopenta(cd)pyrene | C33: 6-8hrs | D33: None set µg/m3 | F33: <0.0011 | G33: <0.0011
A34: Dibenzo(ai)pyrene | C34: 6-8hrs | D34: None set µg/m3 | F34: <0.0011 | G34: <0.0011
A35: Dibenzo(ah)anthracene | C35: 6-8hrs | D35: None set µg/m3 | F35: <0.0011 | G35: <0.0011
A36: Fluoranthene | C36: 6-8hrs | D36: None set µg/m3 | F36: 0.03 | G36: 0.03
A37: Indeno(123-cd) pyrene | C37: 6-8hrs | D37: None set µg/m3 | F37: <0.0011 | G37: <0.0011
A38: Naphthalene | C38: 6-8hrs | D38: None set µg/m3 | F38: 0.185 | G38: 0.185
A39: Comments :

Sheet Air (CEMS)
A1: =+'Cover Page'!$B$29 -> Annual Performance Report 2025 | I1: =+'Cover Page'!$B$33 -> Lakeside Energy from Waste Limited
A3: Emissions to Air (continuously monitored)
N4: Notes:
A5: Summary of monitoring undertaken, standards used and compliance | N5: Template may require adjustment for any bespoke monitoring requirements of permit
A6: Contiuous emissions monitoring method EN 14181. | N6: Please check that all default ELV values match those for your plant and edit if necessary!
N7: Report to 1 decimal place
A11: Results of emissions to air that are continuously monitored (maximum and average values for each line) - oxygen reference 11%
A12: Substance | B12: Reference Period | C12: Emission Limit Value | D12: A1 | F12: A2 | H12: A3 | J12: A4 | L12: A5
D13: Max. | E13: Avg. | F13: Max. | G13: Avg. | H13: Max. | I13: Avg. | J13: Max. | K13: Avg. | L13: Max. | M13: Avg.
A14: Oxides of nitrogen | B14: Daily mean | C14: 180 mg/m3 | D14: =NOx!O19 -> 176.28 | E14: =NOx!N19 -> 150.2108333 | F14: =NOx!O34 -> 171.94 | G14: =NOx!N34 -> 152.0091667
B15: ½ hourly mean | C15: 400 mg/m3 | D15: =NOx!M19 -> 254.74 | E15: =NOx!L19 -> 150.2291667 | F15: =NOx!M34 -> 266 | G15: =NOx!L34 -> 151.8991667
A16: Particulates | B16: Daily mean | C16: 5 mg/m3 | D16: =Particulates!O19 -> 21.36 | E16: =Particulates!N19 -> 1.055833333 | F16: =Particulates!O34 -> 3.42 | G16: =Particulates!N34 -> 0.325
B17: ½ hourly mean | C17: 30 mg/m3 | D17: =Particulates!M19 -> 119.19 | E17: =Particulates!L19 -> 1.054166667 | F17: =Particulates!M34 -> 8.03 | G17: =Particulates!L34 -> 0.3291666667
A18: Total Organic Carbon | B18: Daily mean | C18: 10 mg/m3 | D18: =TOC!O19 -> 0.71 | E18: =TOC!N19 -> -0.1675 | F18: =TOC!O34 -> 3.74 | G18: =TOC!N34 -> 0.1533333333
B19: ½ hourly mean | C19: 20 mg/m3 | D19: =TOC!M19 -> 13.02 | E19: =TOC!L19 -> -0.1658333333 | F19: =TOC!M34 -> 16.74 | G19: =TOC!L34 -> 0.1691666667
A20: Hydrogen chloride | B20: Daily mean | C20: 8 mg/m3 | D20: =HCl!O19 -> 7.97 | E20: =HCl!N19 -> 4.2525 | F20: =HCl!O34 -> 9.91 | G20: =HCl!N34 -> 4.220833333
B21: ½ hourly mean | C21: 60 mg/m3 | D21: =HCl!M19 -> 57.09 | E21: =HCl!L19 -> 4.278333333 | F21: =HCl!M34 -> 36.3 | G21: =HCl!L34 -> 4.225
A22: Sulphur dioxide | B22: Daily mean | C22: 40 mg/m3 | D22: ='SO2'!O19 -> 15.18 | E22: ='SO2'!N19 -> 4.404166667 | F22: ='SO2'!O34 -> 18.85 | G22: ='SO2'!N34 -> 4.8
B23: ½ hourly mean | C23: 200 mg/m3 | D23: ='SO2'!M19 -> 214.3 | E23: ='SO2'!L19 -> 4.466666667 | F23: ='SO2'!M34 -> 179.66 | G23: ='SO2'!L34 -> 4.813333333
A24: Carbon monoxide | B24: Daily mean | C24: 50 mg/m3 | D24: ='CO 95% 10 min'!Q22 -> 32.4 | E24: ='CO 95% 10 min'!P22 -> 11.075 | F24: ='CO 95% 10 min'!Q37 -> 42.51 | G24: ='CO 95% 10 min'!P37 -> 9.518333333
B25: 95%ile 10-min avg * | C25: 150 mg/m3 * | D25: ='CO 95% 10 min'!M22 -> 110.33 | E25: ='CO 95% 10 min'!N22 -> 11.04916667 | F25: ='CO 95% 10 min'!M37 -> 147.15 | G25: ='CO 95% 10 min'!N37 -> 9.546666667
A26: Ammonia | B26: Daily mean | C26: 15 mg/m3 | D26: 1.09 | E26: 0.3 | F26: 4.43 | G26: 0.3
A27: * = delete as appropriate, depending on whether your plant has half-hourly or 10-min CO ELVs
A28: Comments :

Sheet HCl
A1: =+'Cover Page'!$B$29 -> Annual Performance Report 2025 | E1: =+'Cover Page'!$B$33 -> Lakeside Energy from Waste Limited
A3: Monitoring of Hydrogen Chloride emissions | D3: Whole Installation | G3: See Notes in Cell Q3 | J3: =+A3 -> Monitoring of Hydrogen Chloride emissions | N3: Per Combustion Line | Q3: Notes:
Q4: User to add logic to complete Whole installation, Table A5:G18. From the data in Per Combustion Line, Table J6:O79, subject to No. of lines installed
A5: =+'Cover Page'!C39 -> 2025 | B5: 1/2 Hourly Reference Periods | E5: Daily Reference Periods
A6: mg/Nm3 | B6: 1/2 hourly HCl ELV | C6: Monthly mean of half-hourly averages | D6: Highest half- hourly average | E6: Daily HCl ELV | F6: Monthly mean of daily averages | G6: Highest daily average | J6: =+A5 -> 2025 | K6: mg/Nm3 | L6: Monthly mean of half-hourly averages | M6: Highest half- hourly average | N6: Monthly mean of daily averages | O6: Highest daily average
A7: Jan | B7: 60 | C7: =(L7+L22)/2 -> 3.225 | D7: =(M7+M22)/2 -> 36.9 | E7: 8 | F7: =(N7+N22)/2 -> 3.04 | G7: =(O7+O22)/2 -> 3.72 | J7: A1 | K7: Jan | L7: 3.94 | M7: 57.09 | N7: 3.57 | O7: 4.43
A8: Feb | B8: 60 | C8: =(L8+L23)/2 -> 3.305 | D8: 21.32 | E8: 8 | F8: =(N8+N23)/2 -> 3.305 | G8: 5.355 | K8: Feb | L8: 3.81 | M8: 6.34 | N8: 3.81 | O8: 4.7
A9: Mar | B9: 60 | C9: =(L9+L24)/2 -> 3.6 | D9: 6.87 | E9: 8 | F9: =(N9+N24)/2 -> 3.595 | G9: 4.29 | K9: Mar | L9: 4.25 | M9: 9.69 | N9: 4.26 | O9: 5.26 | Q9: Whole Installation table A5:G18:
A10: Apr | B10: 60 | C10: =(L10+L25)/2 -> 4.24 | D10: 10.52 | E10: 8 | F10: =(N10+N25)/2 -> 4.225 | G10: 5.905 | K10: Apr | L10: 3.82 | M10: 7.1 | N10: 3.84 | O10: 4.83 | Q10: Mean: for 1/2 hourly and daily periods calculate mean of values across all operational combustion lines for the month
A11: May | B11: 60 | C11: =(L11+L26)/2 -> 4.74 | D11: 9.045 | E11: 8 | F11: =(N11+N26)/2 -> 4.7 | G11: 6.86 | K11: May | L11: 4.18 | M11: 7.97 | N11: 4.1 | O11: 6.78
A12: Jun | B12: 60 | C12: =(L12+L27)/2 -> 5.105 | D12: 12.46 | E12: 8 | F12: =(N12+N27)/2 -> 5.115 | G12: 6.65 | K12: Jun | L12: 4.65 | M12: 15.85 | N12: 4.65 | O12: 7.13
A13: Jul | B13: 60 | C13: =(L13+L28)/2 -> 3.48 | D13: 8.11 | E13: 8 | F13: =(N13+N28)/2 -> 3.495 | G13: 5.665 | K13: Jul | L13: 3.86 | M13: 7.03 | N13: 3.91 | O13: 6.61 | Q13: Maximum: for 1/2 hourly and daily periods use the highest value across all operational combustion lines for the month
A14: Aug | B14: 60 | C14: =(L14+L29)/2 -> 5.48 | D14: 15.985 | E14: 8 | F14: =(N14+N29)/2 -> 5.51 | G14: 8.865 | K14: Aug | L14: 5.02 | M14: 15.15 | N14: 5.06 | O14: 7.82
A15: Sep | B15: 60 | C15: =(L15+L30)/2 -> 4.675 | D15: 14.55 | E15: 8 | F15: =(N15+N30)/2 -> 4.685 | G15: 5.9 | K15: Sep | L15: 3.98 | M15: 22.18 | N15: 4 | O15: 5.41
A16: Oct | B16: 60 | C16: =(L16+L31)/2 -> 4.73 | D16: 12.495 | E16: 8 | F16: =(N16+N31)/2 -> 4.73 | G16: 6.915 | K16: Oct | L16: 5.09 | M16: 18.36 | N16: 5.09 | O16: 7.74
A17: Nov | B17: 60 | C17: =(L17+L32)/2 -> 3.79 | D17: 11.885 | E17: 8 | F17: =(N17+N32)/2 -> 3.79 | G17: 4.98 | K17: Nov | L17: 3.45 | M17: 12.78 | N17: 3.45 | O17: 3.99
A18: Dec | B18: 60 | C18: =(L18+L33)/2 -> 4.65 | D18: 28.975 | E18: 8 | F18: =(N18+N33)/2 -> 4.65 | G18: 6.915 | K18: Dec | L18: 5.29 | M18: 51.38 | N18: 5.29 | O18: 7.97
K19: Annual | L19: =AVERAGE(L7:L18) -> 4.278333333 | M19: =MAX(M7:M18) -> 57.09 | N19: =AVERAGE(N7:N18) -> 4.2525 | O19: =MAX(O7:O18) -> 7.97
J21: =+A5 -> 2025 | K21: mg/Nm3 | L21: Monthly mean of half-hourly averages | M21: Highest half- hourly average | N21: Monthly mean of daily averages | O21: Highest daily average
J22: A2 | K22: Jan | L22: 2.51 | M22: 16.71 | N22: 2.51 | O22: 3.01
K23: Feb | L23: 2.8 | M23: 36.3 | N23: 2.8 | O23: 6.01
K24: Mar | L24: 2.95 | M24: 4.05 | N24: 2.93 | O24: 3.32
K25: Apr | L25: 4.66 | M25: 13.94 | N25: 4.61 | O25: 6.98
K26: May | L26: 5.3 | M26: 10.12 | N26: 5.3 | O26: 6.94
K27: Jun | L27: 5.56 | M27: 9.07 | N27: 5.58 | O27: 6.17
K28: Jul | L28: 3.1 | M28: 9.19 | N28: 3.08 | O28: 4.72
K29: Aug | L29: 5.94 | M29: 16.82 | N29: 5.96 | O29: 9.91
K30: Sep | L30: 5.37 | M30: 6.92 | N30: 5.37 | O30: 6.39
K31: Oct | L31: 4.37 | M31: 6.63 | N31: 4.37 | O31: 6.09
K32: Nov | L32: 4.13 | M32: 10.99 | N32: 4.13 | O32: 5.97
K33: Dec | L33: 4.01 | M33: 6.57 | N33: 4.01 | O33: 5.86
K34: Annual | L34: =AVERAGE(L22:L33) -> 4.225 | M34: =MAX(M22:M33) -> 36.3 | N34: =AVERAGE(N22:N33) -> 4.220833333 | O34: =MAX(O22:O33) -> 9.91
J36: =+A5 -> 2025 | K36: mg/Nm3 | L36: Monthly mean of half-hourly averages | M36: Highest half- hourly average | N36: Monthly mean of daily averages | O36: Highest daily average
J37: A3 | K37: Jan
K38: Feb
K39: Mar
K40: Apr
K41: May
K42: Jun
K43: Jul
K44: Aug
K45: Sep
K46: Oct
K47: Nov
A48: Comments : | K48: Dec
K49: Annual | L49: =AVERAGE(L37:L48) ->  | M49: =MAX(M37:M48) -> 0 | N49: =AVERAGE(N37:N48) ->  | O49: =MAX(O37:O48) -> 0
J51: =+A5 -> 2025 | K51: mg/Nm3 | L51: Monthly mean of half-hourly averages | M51: Highest half- hourly average | N51: Monthly mean of daily averages | O51: Highest daily average
J52: A4 | K52: Jan
K53: Feb
K54: Mar
K55: Apr
K56: May
K57: Jun
K58: Jul
K59: Aug
K60: Sep
K61: Oct
K62: Nov
K63: Dec
K64: Annual | L64: =AVERAGE(L52:L63) ->  | M64: =MAX(M52:M63) -> 0 | N64: =AVERAGE(N52:N63) ->  | O64: =MAX(O52:O63) -> 0
J66: =+A5 -> 2025 | K66: mg/Nm3 | L66: Monthly mean of half-hourly averages | M66: Highest half- hourly average | N66: Monthly mean of daily averages | O66: Highest daily average
J67: A5 | K67: Jan
K68: Feb
K69: Mar
K70: Apr
K71: May
K72: Jun
K73: Jul
K74: Aug
K75: Sep
K76: Oct
K77: Nov
K78: Dec
K79: Annual | L79: =AVERAGE(L67:L78) ->  | M79: =MAX(M67:M78) -> 0 | N79: =AVERAGE(N67:N78) ->  | O79: =MAX(O67:O78) -> 0

Sheet SO2
A1: =+'Cover Page'!$B$29 -> Annual Performance Report 2025 | E1: =+'Cover Page'!$B$33 -> Lakeside Energy from Waste Limited
A3: Monitoring of Sulphur dioxide emissions | D3: Whole Installation | G3: See Notes in Cell Q3 | J3: =+A3 -> Monitoring of Sulphur dioxide emissions | N3: Per Combustion Line | Q3: Notes:
Q4: User to add logic to complete Whole installation, Table A5:G18. From the data in Per Combustion Line, Table J6:O79, subject to No. of lines installed
A5: =+'Cover Page'!C39 -> 2025 | B5: 1/2 Hourly Reference Periods | E5: Daily Reference Periods
A6: mg/Nm3 | B6: 1/2 hourly SO2 ELV | C6: Monthly mean of half-hourly averages | D6: Highest half- hourly average | E6: Daily SO2 ELV | F6: Monthly mean of daily averages | G6: Highest daily average | J6: =+A5 -> 2025 | K6: mg/Nm3 | L6: Monthly mean of half-hourly averages | M6: Highest half- hourly average | N6: Monthly mean of daily averages | O6: Highest daily average
A7: Jan | B7: 200 | C7: =(L7+L22)/2 -> 6.845 | D7: =(M7+M22)/2 -> 44.545 | E7: 40 | F7: =(N7+N22)/2 -> 6.59 | G7: =(O7+O22)/2 -> 8.4 | J7: A1 | K7: Jan | L7: 6.57 | M7: 59.62 | N7: 6.06 | O7: 7.65
A8: Feb | B8: 200 | C8: =(L8+L23)/2 -> 6.115 | D8: =(M8+M23)/2 -> 32.915 | E8: 40 | F8: =(N8+N23)/2 -> 6.115 | G8: =(O8+O23)/2 -> 8.055 | K8: Feb | L8: 5.33 | M8: 17.3 | N8: 5.33 | O8: 6.33
A9: Mar | B9: 200 | C9: 6.105 | D9: 42.595 | E9: 40 | F9: 6.105 | G9: 8.24 | K9: Mar | L9: 6.16 | M9: 56.33 | N9: 6.14 | O9: 8.28 | Q9: Whole Installation table A5:G18:
A10: Apr | B10: 200 | C10: 6.24 | D10: 100.375 | E10: 40 | F10: 6.135 | G10: 13.755 | K10: Apr | L10: 5.83 | M10: 21.09 | N10: 5.77 | O10: 8.66 | Q10: Mean: for 1/2 hourly and daily periods calculate mean of values across all operational combustion lines for the month
A11: May | B11: 200 | C11: 5.88 | D11: 31.56 | E11: 40 | F11: 5.825 | G11: 7.305 | K11: May | L11: 5.4 | M11: 37.98 | N11: 5.29 | O11: 6.85
A12: Jun | B12: 200 | C12: 5.895 | D12: 78.185 | E12: 40 | F12: 5.9 | G12: 8.04 | K12: Jun | L12: 5.69 | M12: 125.09 | N12: 5.69 | O12: 9.07
A13: Jul | B13: 200 | C13: 2.26 | D13: 15.82 | E13: 40 | F13: 2.245 | G13: 4.47 | K13: Jul | L13: 1.33 | M13: 23.35 | N13: 1.31 | O13: 4.13 | Q13: Maximum: for 1/2 hourly and daily periods use the highest value across all operational combustion lines for the month
A14: Aug | B14: 200 | C14: 2.02 | D14: 21.825 | E14: 40 | F14: 1.99 | G14: 2.985 | K14: Aug | L14: 1.05 | M14: 13.77 | N14: 1.02 | O14: 2.07
A15: Sep | B15: 200 | C15: 3.285 | D15: 32.78 | E15: 40 | F15: 3.285 | G15: 5.47 | K15: Sep | L15: 3.45 | M15: 58.75 | N15: 3.45 | O15: 7.29
A16: Oct | B16: 200 | C16: 3.195 | D16: 65.735 | E16: 40 | F16: 3.195 | G16: 7.28 | K16: Oct | L16: 3.27 | M16: 104.51 | N16: 3.27 | O16: 8.4
A17: Nov | B17: 200 | C17: 3.805 | D17: 117.605 | E17: 40 | F17: 3.805 | G17: 10.5 | K17: Nov | L17: 4.88 | M17: 214.3 | N17: 4.88 | O17: 15.18
A18: Dec | B18: 200 | C18: 4.035 | D18: 108.335 | E18: 40 | F18: 4.035 | G18: 11.66 | K18: Dec | L18: 4.64 | M18: 165.52 | N18: 4.64 | O18: 14.14
K19: Annual | L19: =AVERAGE(L7:L18) -> 4.466666667 | M19: =MAX(M7:M18) -> 214.3 | N19: =AVERAGE(N7:N18) -> 4.404166667 | O19: =MAX(O7:O18) -> 15.18
J21: =+A5 -> 2025 | K21: mg/Nm3 | L21: Monthly mean of half-hourly averages | M21: Highest half- hourly average | N21: Monthly mean of daily averages | O21: Highest daily average
J22: A2 | K22: Jan | L22: 7.12 | M22: 29.47 | N22: 7.12 | O22: 9.15
K23: Feb | L23: 6.9 | M23: 48.53 | N23: 6.9 | O23: 9.78
K24: Mar | L24: 6.05 | M24: 28.86 | N24: 6.07 | O24: 8.2
K25: Apr | L25: 6.65 | M25: 179.66 | N25: 6.5 | O25: 18.85
K26: May | L26: 6.36 | M26: 25.14 | N26: 6.36 | O26: 7.76
K27: Jun | L27: 6.1 | M27: 31.28 | N27: 6.11 | O27: 7.01
K28: Jul | L28: 3.19 | M28: 8.29 | N28: 3.18 | O28: 4.81
K29: Aug | L29: 2.99 | M29: 29.88 | N29: 2.96 | O29: 3.9
K30: Sep | L30: 3.12 | M30: 6.81 | N30: 3.12 | O30: 3.65
K31: Oct | L31: 3.12 | M31: 26.96 | N31: 3.12 | O31: 6.16
K32: Nov | L32: 2.73 | M32: 20.91 | N32: 2.73 | O32: 5.82
K33: Dec | L33: 3.43 | M33: 51.15 | N33: 3.43 | O33: 9.18
K34: Annual | L34: =AVERAGE(L22:L33) -> 4.813333333 | M34: =MAX(M22:M33) -> 179.66 | N34: =AVERAGE(N22:N33) -> 4.8 | O34: =MAX(O22:O33) -> 18.85
J36: =+A5 -> 2025 | K36: mg/Nm3 | L36: Monthly mean of half-hourly averages | M36: Highest half- hourly average | N36: Monthly mean of daily averages | O36: Highest daily average
J37: A3 | K37: Jan
K38: Feb
K39: Mar
K40: Apr
K41: May
K42: Jun
K43: Jul
K44: Aug
K45: Sep
K46: Oct
K47: Nov
A48: Comments : | K48: Dec
K49: Annual | L49: =AVERAGE(L37:L48) ->  | M49: =MAX(M37:M48) -> 0 | N49: =AVERAGE(N37:N48) ->  | O49: =MAX(O37:O48) -> 0
J51: =+A5 -> 2025 | K51: mg/Nm3 | L51: Monthly mean of half-hourly averages | M51: Highest half- hourly average | N51: Monthly mean of daily averages | O51: Highest daily average
J52: A4 | K52: Jan
K53: Feb
K54: Mar
K55: Apr
K56: May
K57: Jun
K58: Jul
K59: Aug
K60: Sep
K61: Oct
K62: Nov
K63: Dec
K64: Annual | L64: =AVERAGE(L52:L63) ->  | M64: =MAX(M52:M63) -> 0 | N64: =AVERAGE(N52:N63) ->  | O64: =MAX(O52:O63) -> 0
J66: =+A5 -> 2025 | K66: mg/Nm3 | L66: Monthly mean of half-hourly averages | M66: Highest half- hourly average | N66: Monthly mean of daily averages | O66: Highest daily average
J67: A5 | K67: Jan
K68: Feb
K69: Mar
K70: Apr
K71: May
K72: Jun
K73: Jul
K74: Aug
K75: Sep
K76: Oct
K77: Nov
K78: Dec
K79: Annual | L79: =AVERAGE(L67:L78) ->  | M79: =MAX(M67:M78) -> 0 | N79: =AVERAGE(N67:N78) ->  | O79: =MAX(O67:O78) -> 0

Sheet NOx
A1: =+'Cover Page'!$B$29 -> Annual Performance Report 2025 | E1: =+'Cover Page'!$B$33 -> Lakeside Energy from Waste Limited
A3: Monitoring of Oxides of Nitrogen emissions | D3: Whole Installation | G3: See Notes in Cell Q3 | J3: =+A3 -> Monitoring of Oxides of Nitrogen emissions | N3: Per Combustion Line | Q3: Notes:
Q4: User to add logic to complete Whole installation, Table A5:G18. From the data in Per Combustion Line, Table J6:O79, subject to No. of lines installed
A5: =+'Cover Page'!C39 -> 2025 | B5: 1/2 Hourly Reference Periods | E5: Daily Reference Periods
A6: mg/Nm3 | B6: 1/2 hourly NOx ELV | C6: Monthly mean of half-hourly averages | D6: Highest half- hourly average | E6: Daily NOx ELV | F6: Monthly mean of daily averages | G6: Highest daily average | J6: =+A5 -> 2025 | K6: mg/Nm3 | L6: Monthly mean of half-hourly averages | M6: Highest half- hourly average | N6: Monthly mean of daily averages | O6: Highest daily average
A7: Jan | B7: 400 | C7: =(L7+L22)/2 -> 156.275 | D7: =(M7+M22)/2 -> 202.85 | E7: 180 | F7: =(N7+N22)/2 -> 156.27 | G7: =(O7+O22)/2 -> 169.915 | J7: A1 | K7: Jan | L7: 158.51 | M7: 194.17 | N7: 158.51 | O7: 167.89
A8: Feb | B8: 400 | C8: =(L8+L23)/2 -> 149.535 | D8: 230.2 | E8: 180 | F8: =(N8+N23)/2 -> 149.52 | G8: 160.85 | K8: Feb | L8: 144.58 | M8: 194.4 | N8: 144.56 | O8: 161.09
A9: Mar | B9: 400 | C9: =(L9+L24)/2 -> 148.42 | D9: 182.175 | E9: 180 | F9: =(N9+N24)/2 -> 148.475 | G9: 157.655 | K9: Mar | L9: 143.53 | M9: 182.73 | N9: 143.51 | O9: 157.23 | Q9: Whole Installation table A5:G18:
A10: Apr | B10: 400 | C10: =(L10+L25)/2 -> 151.17 | D10: 225.735 | E10: 180 | F10: =(N10+N25)/2 -> 151.855 | G10: 167.14 | K10: Apr | L10: 148.14 | M10: 223.4 | N10: 148.28 | O10: 176.28 | Q10: Mean: for 1/2 hourly and daily periods calculate mean of values across all operational combustion lines for the month
A11: May | B11: 400 | C11: =(L11+L26)/2 -> 147.915 | D11: 185.84 | E11: 180 | F11: =(N11+N26)/2 -> 147.73 | G11: 157.505 | K11: May | L11: 141.22 | M11: 196.9 | N11: 140.85 | O11: 154.39
A12: Jun | B12: 400 | C12: =(L12+L27)/2 -> 147.64 | D12: 181.9 | E12: 180 | F12: =(N12+N27)/2 -> 147.645 | G12: 158.18 | K12: Jun | L12: 140.56 | M12: 177.7 | N12: 140.56 | O12: 156.97
A13: Jul | B13: 400 | C13: =(L13+L28)/2 -> 138.84 | D13: 169.895 | E13: 180 | F13: =(N13+N28)/2 -> 138.76 | G13: 153.6 | K13: Jul | L13: 136.54 | M13: 174.21 | N13: 136.38 | O13: 158.69 | Q13: Maximum: for 1/2 hourly and daily periods use the highest value across all operational combustion lines for the month
A14: Aug | B14: 400 | C14: =(L14+L29)/2 -> 152.33 | D14: 192.525 | E14: 180 | F14: =(N14+N29)/2 -> 152.26 | G14: 161.755 | K14: Aug | L14: 157.91 | M14: 198.01 | N14: 157.8 | O14: 167.39
A15: Sep | B15: 400 | C15: =(L15+L30)/2 -> 153.885 | D15: 215.36 | E15: 180 | F15: =(N15+N30)/2 -> 154.045 | G15: 163.405 | K15: Sep | L15: 157.84 | M15: 254.74 | N15: 158.16 | O15: 167.51
A16: Oct | B16: 400 | C16: =(L16+L31)/2 -> 152.15 | D16: 176.495 | E16: 180 | F16: =(N16+N31)/2 -> 152.15 | G16: 159.655 | K16: Oct | L16: 154.98 | M16: 177.26 | N16: 154.98 | O16: 161.23
A17: Nov | B17: 400 | C17: =(L17+L32)/2 -> 157.555 | D17: 186.45 | E17: 180 | F17: =(N17+N32)/2 -> 157.555 | G17: 167.56 | K17: Nov | L17: 160.92 | M17: 180.85 | N17: 160.92 | O17: 169.05
A18: Dec | B18: 400 | C18: =(L18+L33)/2 -> 157.055 | D18: 194.565 | E18: 180 | F18: =(N18+N33)/2 -> 157.055 | G18: 166.895 | K18: Dec | L18: 158.02 | M18: 197.35 | N18: 158.02 | O18: 169.13
K19: Annual | L19: =AVERAGE(L7:L18) -> 150.2291667 | M19: =MAX(M7:M18) -> 254.74 | N19: =AVERAGE(N7:N18) -> 150.2108333 | O19: =MAX(O7:O18) -> 176.28
J21: =+A5 -> 2025 | K21: mg/Nm3 | L21: Monthly mean of half-hourly averages | M21: Highest half- hourly average | N21: Monthly mean of daily averages | O21: Highest daily average
J22: A2 | K22: Jan | L22: 154.04 | M22: 211.53 | N22: 154.03 | O22: 171.94
K23: Feb | L23: 154.49 | M23: 266 | N23: 154.48 | O23: 160.61
K24: Mar | L24: 153.31 | M24: 181.62 | N24: 153.44 | O24: 158.08
K25: Apr | L25: 154.2 | M25: 228.07 | N25: 155.43 | O25: 158
K26: May | L26: 154.61 | M26: 174.78 | N26: 154.61 | O26: 160.62
K27: Jun | L27: 154.72 | M27: 186.1 | N27: 154.73 | O27: 159.39
K28: Jul | L28: 141.14 | M28: 165.58 | N28: 141.14 | O28: 148.51
K29: Aug | L29: 146.75 | M29: 187.04 | N29: 146.72 | O29: 156.12
K30: Sep | L30: 149.93 | M30: 175.98 | N30: 149.93 | O30: 159.3
K31: Oct | L31: 149.32 | M31: 175.73 | N31: 149.32 | O31: 158.08
K32: Nov | L32: 154.19 | M32: 192.05 | N32: 154.19 | O32: 166.07
K33: Dec | L33: 156.09 | M33: 191.78 | N33: 156.09 | O33: 164.66
K34: Annual | L34: =AVERAGE(L22:L33) -> 151.8991667 | M34: =MAX(M22:M33) -> 266 | N34: =AVERAGE(N22:N33) -> 152.0091667 | O34: =MAX(O22:O33) -> 171.94
J36: =+A5 -> 2025 | K36: mg/Nm3 | L36: Monthly mean of half-hourly averages | M36: Highest half- hourly average | N36: Monthly mean of daily averages | O36: Highest daily average
J37: A3 | K37: Jan
K38: Feb
K39: Mar
K40: Apr
K41: May
K42: Jun
K43: Jul
K44: Aug
K45: Sep
K46: Oct
K47: Nov
A48: Comments : | K48: Dec
K49: Annual | L49: =AVERAGE(L37:L48) ->  | M49: =MAX(M37:M48) -> 0 | N49: =AVERAGE(N37:N48) ->  | O49: =MAX(O37:O48) -> 0
J51: =+A5 -> 2025 | K51: mg/Nm3 | L51: Monthly mean of half-hourly averages | M51: Highest half- hourly average | N51: Monthly mean of daily averages | O51: Highest daily average
J52: A4 | K52: Jan
K53: Feb
K54: Mar
K55: Apr
K56: May
K57: Jun
K58: Jul
K59: Aug
K60: Sep
K61: Oct
K62: Nov
K63: Dec
K64: Annual | L64: =AVERAGE(L52:L63) ->  | M64: =MAX(M52:M63) -> 0 | N64: =AVERAGE(N52:N63) ->  | O64: =MAX(O52:O63) -> 0
J66: =+A5 -> 2025 | K66: mg/Nm3 | L66: Monthly mean of half-hourly averages | M66: Highest half- hourly average | N66: Monthly mean of daily averages | O66: Highest daily average
J67: A5 | K67: Jan
K68: Feb
K69: Mar
K70: Apr
K71: May
K72: Jun
K73: Jul
K74: Aug
K75: Sep
K76: Oct
K77: Nov
K78: Dec
K79: Annual | L79: =AVERAGE(L67:L78) ->  | M79: =MAX(M67:M78) -> 0 | N79: =AVERAGE(N67:N78) ->  | O79: =MAX(O67:O78) -> 0

Sheet TOC
A1: =+'Cover Page'!$B$29 -> Annual Performance Report 2025 | E1: =+'Cover Page'!$B$33 -> Lakeside Energy from Waste Limited
A3: Monitoring of Total organic carbon emissions | D3: Whole Installation | G3: See Notes in Cell Q3 | J3: =+A3 -> Monitoring of Total organic carbon emissions | N3: Per Combustion Line | Q3: Notes:
Q4: User to add logic to complete Whole installation, Table A5:G18. From the data in Per Combustion Line, Table J6:O79, subject to No. of lines installed
A5: =+'Cover Page'!C39 -> 2025 | B5: 1/2 Hourly Reference Periods | E5: Daily Reference Periods
A6: mg/Nm3 | B6: 1/2 hourly TOC ELV | C6: Monthly mean of half-hourly averages | D6: Highest half- hourly average | E6: Daily TOC ELV | F6: Monthly mean of daily averages | G6: Highest daily average | J6: =+A5 -> 2025 | K6: mg/Nm3 | L6: Monthly mean of half-hourly averages | M6: Highest half- hourly average | N6: Monthly mean of daily averages | O6: Highest daily average
A7: Jan | B7: 20 | C7: =(L7+L22)/2 -> 0.305 | D7: =(M7+M22)/2 -> 6.49 | E7: 10 | F7: =(N7+N22)/2 -> 0.3 | G7: =(O7+O22)/2 -> 0.59 | J7: A1 | K7: Jan | L7: 0.33 | M7: 6.2 | N7: 0.32 | O7: 0.6
A8: Feb | B8: 20 | C8: =(L8+L23)/2 -> 0.32 | D8: 6.78 | E8: 10 | F8: =(N8+N23)/2 -> 0.32 | G8: 0.57 | K8: Feb | L8: 0.31 | M8: 6.27 | N8: 0.31 | O8: 0.6
A9: Mar | B9: 20 | C9: =(L9+L24)/2 -> 0.355 | D9: 5.295 | E9: 10 | F9: =(N9+N24)/2 -> 0.355 | G9: 0.58 | K9: Mar | L9: 0.33 | M9: 5.08 | N9: 0.33 | O9: 0.56 | Q9: Whole Installation table A5:G18:
A10: Apr | B10: 20 | C10: =(L10+L25)/2 -> 0.555 | D10: 14.88 | E10: 10 | F10: =(N10+N25)/2 -> 0.38 | G10: 2.005 | K10: Apr | L10: 0.26 | M10: 13.02 | N10: 0.1 | O10: 0.27 | Q10: Mean: for 1/2 hourly and daily periods calculate mean of values across all operational combustion lines for the month
A11: May | B11: 20 | C11: =(L11+L26)/2 -> 0.125 | D11: 9.425 | E11: 10 | F11: =(N11+N26)/2 -> 0.195 | G11: 0.72 | K11: May | L11: -0.03 | M11: 5.85 | N11: 0.11 | O11: 0.71
A12: Jun | B12: 20 | C12: =(L12+L27)/2 -> 0.195 | D12: 5.54 | E12: 10 | F12: =(N12+N27)/2 -> 0.195 | G12: 0.37 | K12: Jun | L12: 0.12 | M12: 5.29 | N12: 0.12 | O12: 0.27
A13: Jul | B13: 20 | C13: =(L13+L28)/2 -> -0.475 | D13: 10.605 | E13: 10 | F13: =(N13+N28)/2 -> -0.465 | G13: -0.14 | K13: Jul | L13: -0.54 | M13: 10.26 | N13: -0.51 | O13: -0.15 | Q13: Maximum: for 1/2 hourly and daily periods use the highest value across all operational combustion lines for the month
A14: Aug | B14: 20 | C14: =(L14+L29)/2 -> -0.44 | D14: 6.84 | E14: 10 | F14: =(N14+N29)/2 -> -0.44 | G14: -0.205 | K14: Aug | L14: -0.46 | M14: 5.91 | N14: -0.47 | O14: -0.26
A15: Sep | B15: 20 | C15: =(L15+L30)/2 -> -0.51 | D15: 5.16 | E15: 10 | F15: =(N15+N30)/2 -> -0.515 | G15: -0.24 | K15: Sep | L15: -0.61 | M15: 5.55 | N15: -0.62 | O15: -0.28
A16: Oct | B16: 20 | C16: =(L16+L31)/2 -> -0.39 | D16: 5.29 | E16: 10 | F16: =(N16+N31)/2 -> -0.39 | G16: 0.315 | K16: Oct | L16: -0.43 | M16: 5.32 | N16: -0.43 | O16: -0.18
A17: Nov | B17: 20 | C17: =(L17+L32)/2 -> -0.145 | D17: 5.83 | E17: 10 | F17: =(N17+N32)/2 -> -0.145 | G17: 0.305 | K17: Nov | L17: -0.62 | M17: 5.5 | N17: -0.62 | O17: -0.46
A18: Dec | B18: 20 | C18: =(L18+L33)/2 -> 0.125 | D18: 5.975 | E18: 10 | F18: =(N18+N33)/2 -> 0.125 | G18: 1.405 | K18: Dec | L18: -0.65 | M18: 4.99 | N18: -0.65 | O18: -0.41
K19: Annual | L19: =AVERAGE(L7:L18) -> -0.1658333333 | M19: =MAX(M7:M18) -> 13.02 | N19: =AVERAGE(N7:N18) -> -0.1675 | O19: =MAX(O7:O18) -> 0.71
J21: =+A5 -> 2025 | K21: mg/Nm3 | L21: Monthly mean of half-hourly averages | M21: Highest half- hourly average | N21: Monthly mean of daily averages | O21: Highest daily average
J22: A2 | K22: Jan | L22: 0.28 | M22: 6.78 | N22: 0.28 | O22: 0.58
K23: Feb | L23: 0.33 | M23: 7.29 | N23: 0.33 | O23: 0.54
K24: Mar | L24: 0.38 | M24: 5.51 | N24: 0.38 | O24: 0.6
K25: Apr | L25: 0.85 | M25: 16.74 | N25: 0.66 | O25: 3.74
K26: May | L26: 0.28 | M26: 13 | N26: 0.28 | O26: 0.73
K27: Jun | L27: 0.27 | M27: 5.79 | N27: 0.27 | O27: 0.47
K28: Jul | L28: -0.41 | M28: 10.95 | N28: -0.42 | O28: -0.13
K29: Aug | L29: -0.42 | M29: 7.77 | N29: -0.41 | O29: -0.15
K30: Sep | L30: -0.41 | M30: 4.77 | N30: -0.41 | O30: -0.2
K31: Oct | L31: -0.35 | M31: 5.26 | N31: -0.35 | O31: 0.81
K32: Nov | L32: 0.33 | M32: 6.16 | N32: 0.33 | O32: 1.07
K33: Dec | L33: 0.9 | M33: 6.96 | N33: 0.9 | O33: 3.22
K34: Annual | L34: =AVERAGE(L22:L33) -> 0.1691666667 | M34: =MAX(M22:M33) -> 16.74 | N34: =AVERAGE(N22:N33) -> 0.1533333333 | O34: =MAX(O22:O33) -> 3.74
J36: =+A5 -> 2025 | K36: mg/Nm3 | L36: Monthly mean of half-hourly averages | M36: Highest half- hourly average | N36: Monthly mean of daily averages | O36: Highest daily average
J37: A3 | K37: Jan
K38: Feb
K39: Mar
K40: Apr
K41: May
K42: Jun
K43: Jul
K44: Aug
K45: Sep
K46: Oct
K47: Nov
A48: Comments : | K48: Dec
K49: Annual | L49: =AVERAGE(L37:L48) ->  | M49: =MAX(M37:M48) -> 0 | N49: =AVERAGE(N37:N48) ->  | O49: =MAX(O37:O48) -> 0
J51: =+A5 -> 2025 | K51: mg/Nm3 | L51: Monthly mean of half-hourly averages | M51: Highest half- hourly average | N51: Monthly mean of daily averages | O51: Highest daily average
J52: A4 | K52: Jan
K53: Feb
K54: Mar
K55: Apr
K56: May
K57: Jun
K58: Jul
K59: Aug
K60: Sep
K61: Oct
K62: Nov
K63: Dec
K64: Annual | L64: =AVERAGE(L52:L63) ->  | M64: =MAX(M52:M63) -> 0 | N64: =AVERAGE(N52:N63) ->  | O64: =MAX(O52:O63) -> 0
J66: =+A5 -> 2025 | K66: mg/Nm3 | L66: Monthly mean of half-hourly averages | M66: Highest half- hourly average | N66: Monthly mean of daily averages | O66: Highest daily average
J67: A5 | K67: Jan
K68: Feb
K69: Mar
K70: Apr
K71: May
K72: Jun
K73: Jul
K74: Aug
K75: Sep
K76: Oct
K77: Nov
K78: Dec
K79: Annual | L79: =AVERAGE(L67:L78) ->  | M79: =MAX(M67:M78) -> 0 | N79: =AVERAGE(N67:N78) ->  | O79: =MAX(O67:O78) -> 0

Sheet Particulates
A1: =+'Cover Page'!$B$29 -> Annual Performance Report 2025 | E1: =+'Cover Page'!$B$33 -> Lakeside Energy from Waste Limited
A3: Monitoring of Particulate matter emissions | D3: Whole Installation | G3: See Notes in Cell Q3 | J3: =+A3 -> Monitoring of Particulate matter emissions | N3: Per Combustion Line | Q3: Notes:
A5: =+'Cover Page'!C39 -> 2025 | B5: 1/2 Hourly Reference Periods | E5: Daily Reference Periods | Q5: User to add logic to complete Whole installation, Table A5:G18. From the data in Per Combustion Line, Table J6:O79, subject to No. of lines installed
A6: mg/Nm3 | B6: 1/2 hourly PM ELV | C6: Monthly mean of half-hourly averages | D6: Highest half- hourly average | E6: Daily PM ELV | F6: Monthly mean of daily averages | G6: Highest daily average | J6: =+A5 -> 2025 | K6: mg/Nm3 | L6: Monthly mean of half-hourly averages | M6: Highest half- hourly average | N6: Monthly mean of daily averages | O6: Highest daily average
A7: Jan | B7: 30 | C7: =(L7+L22)/2 -> 1.325 | D7: =(M7+M22)/2 -> 60.235 | E7: 5 | F7: =(N7+N22)/2 -> 1.34 | G7: =(O7+O22)/2 -> 10.87 | J7: A1 | K7: Jan | L7: 2.37 | M7: 119.19 | N7: 2.4 | O7: 21.36
A8: Feb | B8: 30 | C8: =(L8+L23)/2 -> 0.92 | D8: 6.01 | E8: 5 | F8: =(N8+N23)/2 -> 0.915 | G8: 2.775 | K8: Feb | L8: 1.36 | M8: 3.99 | N8: 1.36 | O8: 2.13
A9: Mar | B9: 30 | C9: =(L9+L24)/2 -> 0.685 | D9: 4.915 | E9: 5 | F9: =(N9+N24)/2 -> 0.69 | G9: 1.19 | K9: Mar | L9: 1.08 | M9: 9.21 | N9: 1.09 | O9: 2.06
A10: Apr | B10: 30 | C10: =(L10+L25)/2 -> 0.79 | D10: 6.5 | E10: 5 | F10: =(N10+N25)/2 -> 0.745 | G10: 2.505 | K10: Apr | L10: 0.98 | M10: 10.52 | N10: 0.92 | O10: 1.86 | Q10: Whole Installation table A5:G18:
A11: May | B11: 30 | C11: =(L11+L26)/2 -> 0.53 | D11: 3.255 | E11: 5 | F11: =(N11+N26)/2 -> 0.525 | G11: 1.64 | K11: May | L11: 0.79 | M11: 5.85 | N11: 0.78 | O11: 2.91 | Q11: Mean: for 1/2 hourly and daily periods calculate mean of values across all operational combustion lines for the month
A12: Jun | B12: 30 | C12: =(L12+L27)/2 -> 0.55 | D12: 8.005 | E12: 5 | F12: =(N12+N27)/2 -> 0.55 | G12: 2.16 | K12: Jun | L12: 0.85 | M12: 14.3 | N12: 0.85 | O12: 4
A13: Jul | B13: 30 | C13: =(L13+L28)/2 -> 0.87 | D13: 6.385 | E13: 5 | F13: =(N13+N28)/2 -> 0.87 | G13: 1.825 | K13: Jul | L13: 1.5 | M13: 10.89 | N13: 1.51 | O13: 3.29
A14: Aug | B14: 30 | C14: =(L14+L29)/2 -> 0.355 | D14: 3.355 | E14: 5 | F14: =(N14+N29)/2 -> 0.355 | G14: 2.31 | K14: Aug | L14: 0.44 | M14: 5.56 | N14: 0.44 | O14: 3.82 | Q14: Maximum: for 1/2 hourly and daily periods use the highest value across all operational combustion lines for the month
A15: Sep | B15: 30 | C15: =(L15+L30)/2 -> 0.645 | D15: 13.45 | E15: 5 | F15: =(N15+N30)/2 -> 0.665 | G15: 2.995 | K15: Sep | L15: 0.98 | M15: 25.89 | N15: 1.02 | O15: 5.18
A16: Oct | B16: 30 | C16: =(L16+L31)/2 -> 0.7 | D16: 5.1 | E16: 5 | F16: =(N16+N31)/2 -> 0.7 | G16: 1.69 | K16: Oct | L16: 1.13 | M16: 9.66 | N16: 1.13 | O16: 3.04
A17: Nov | B17: 30 | C17: =(L17+L32)/2 -> 0.315 | D17: 1.455 | E17: 5 | F17: =(N17+N32)/2 -> 0.315 | G17: 0.425 | K17: Nov | L17: 0.3 | M17: 0.61 | N17: 0.3 | O17: 0.37
A18: Dec | B18: 30 | C18: =(L18+L33)/2 -> 0.615 | D18: 16.685 | E18: 5 | F18: =(N18+N33)/2 -> 0.615 | G18: 1.51 | K18: Dec | L18: 0.87 | M18: 31.66 | N18: 0.87 | O18: 1.92
K19: Annual | L19: =AVERAGE(L7:L18) -> 1.054166667 | M19: =MAX(M7:M18) -> 119.19 | N19: =AVERAGE(N7:N18) -> 1.055833333 | O19: =MAX(O7:O18) -> 21.36
J21: =+A5 -> 2025 | K21: mg/Nm3 | L21: Monthly mean of half-hourly averages | M21: Highest half- hourly average | N21: Monthly mean of daily averages | O21: Highest daily average
J22: A2 | K22: Jan | L22: 0.28 | M22: 1.28 | N22: 0.28 | O22: 0.38
K23: Feb | L23: 0.48 | M23: 8.03 | N23: 0.47 | O23: 3.42
K24: Mar | L24: 0.29 | M24: 0.62 | N24: 0.29 | O24: 0.32
K25: Apr | L25: 0.6 | M25: 2.48 | N25: 0.57 | O25: 3.15
K26: May | L26: 0.27 | M26: 0.66 | N26: 0.27 | O26: 0.37
K27: Jun | L27: 0.25 | M27: 1.71 | N27: 0.25 | O27: 0.32
K28: Jul | L28: 0.24 | M28: 1.88 | N28: 0.23 | O28: 0.36
K29: Aug | L29: 0.27 | M29: 1.15 | N29: 0.27 | O29: 0.8
K30: Sep | L30: 0.31 | M30: 1.01 | N30: 0.31 | O30: 0.81
K31: Oct | L31: 0.27 | M31: 0.54 | N31: 0.27 | O31: 0.34
K32: Nov | L32: 0.33 | M32: 2.3 | N32: 0.33 | O32: 0.48
K33: Dec | L33: 0.36 | M33: 1.71 | N33: 0.36 | O33: 1.1
K34: Annual | L34: =AVERAGE(L22:L33) -> 0.3291666667 | M34: =MAX(M22:M33) -> 8.03 | N34: =AVERAGE(N22:N33) -> 0.325 | O34: =MAX(O22:O33) -> 3.42
J36: =+A5 -> 2025 | K36: mg/Nm3 | L36: Monthly mean of half-hourly averages | M36: Highest half- hourly average | N36: Monthly mean of daily averages | O36: Highest daily average
J37: A3 | K37: Jan
K38: Feb
K39: Mar
K40: Apr
K41: May
K42: Jun
K43: Jul
K44: Aug
K45: Sep
K46: Oct
K47: Nov
A48: Comments : | K48: Dec
K49: Annual | L49: =AVERAGE(L37:L48) ->  | M49: =MAX(M37:M48) -> 0 | N49: =AVERAGE(N37:N48) ->  | O49: =MAX(O37:O48) -> 0
J51: =+A5 -> 2025 | K51: mg/Nm3 | L51: Monthly mean of half-hourly averages | M51: Highest half- hourly average | N51: Monthly mean of daily averages | O51: Highest daily average
J52: A4 | K52: Jan
K53: Feb
K54: Mar
K55: Apr
K56: May
K57: Jun
K58: Jul
K59: Aug
K60: Sep
K61: Oct
K62: Nov
K63: Dec
K64: Annual | L64: =AVERAGE(L52:L63) ->  | M64: =MAX(M52:M63) -> 0 | N64: =AVERAGE(N52:N63) ->  | O64: =MAX(O52:O63) -> 0
J66: =+A5 -> 2025 | K66: mg/Nm3 | L66: Monthly mean of half-hourly averages | M66: Highest half- hourly average | N66: Monthly mean of daily averages | O66: Highest daily average
J67: A5 | K67: Jan
K68: Feb
K69: Mar
K70: Apr
K71: May
K72: Jun
K73: Jul
K74: Aug
K75: Sep
K76: Oct
K77: Nov
K78: Dec
K79: Annual | L79: =AVERAGE(L67:L78) ->  | M79: =MAX(M67:M78) -> 0 | N79: =AVERAGE(N67:N78) ->  | O79: =MAX(O67:O78) -> 0

Sheet CO 0.5 hourly
A1: =+'Cover Page'!$B$29 -> Annual Performance Report 2025 | E1: =+'Cover Page'!$B$33 -> Lakeside Energy from Waste Limited
A3: Monitoring of Carbon Monoxide (half hourly) | D3: Whole Installation | G3: See Notes in Cell Q3 | J3: =+A3 -> Monitoring of Carbon Monoxide (half hourly) | N3: Per Combustion Line | Q3: Notes:
A5: Please complete this tab for your plant if you have 1/2 hourly CO ELVs; otherwise, leave it blank and complete the CO 95% 10 min tab
Q7: User to add logic to complete Whole installation, Table A5:G18. From the data in Per Combustion Line, Table J6:O79, subject to No. of lines installed
A8: =+'Cover Page'!C39 -> 2025 | B8: 1/2 Hourly Reference Periods | E8: Daily Reference Periods
A9: mg/Nm3 | B9: 1/2 hourly CO ELV | C9: Monthly mean of half-hourly averages | D9: Highest half- hourly average | E9: Daily CO ELV | F9: Monthly mean of daily averages | G9: Highest daily average | J9: =+A8 -> 2025 | K9: mg/Nm3 | L9: Monthly mean of half-hourly averages | M9: Highest half- hourly average | N9: Monthly mean of daily averages | O9: Highest daily average
A10: Jan | B10: 100 | E10: 50 | J10: A1 | K10: Jan
A11: Feb | B11: =+B10 -> 100 | E11: =+E10 -> 50 | K11: Feb
A12: Mar | B12: =+B11 -> 100 | E12: =+E11 -> 50 | K12: Mar | Q12: Whole Installation table A5:G18:
A13: Apr | B13: 100 | E13: 50 | K13: Apr | Q13: Mean: for 1/2 hourly and daily periods calculate mean of values across all operational combustion lines for the month
A14: May | B14: 100 | E14: 50 | K14: May
A15: Jun | B15: 100 | E15: 50 | K15: Jun
A16: Jul | B16: 100 | E16: 50 | K16: Jul | Q16: Maximum: for 1/2 hourly and daily periods use the highest value across all operational combustion lines for the month
A17: Aug | B17: 100 | E17: 50 | K17: Aug
A18: Sep | B18: 100 | E18: 50 | K18: Sep
A19: Oct | B19: 100 | E19: 50 | K19: Oct
A20: Nov | B20: 100 | E20: 50 | K20: Nov
A21: Dec | B21: 100 | E21: 50 | K21: Dec
K22: Annual | L22: =AVERAGE(L10:L21) ->  | M22: =MAX(M10:M21) -> 0 | N22: =AVERAGE(N10:N21) ->  | O22: =MAX(O10:O21) -> 0
J24: =+A8 -> 2025 | K24: mg/Nm3 | L24: Monthly mean of half-hourly averages | M24: Highest half- hourly average | N24: Monthly mean of daily averages | O24: Highest daily average
J25: A2 | K25: Jan
K26: Feb
K27: Mar
K28: Apr
K29: May
K30: Jun
K31: Jul
K32: Aug
K33: Sep
K34: Oct
K35: Nov
K36: Dec
K37: Annual | L37: =AVERAGE(L25:L36) ->  | M37: =MAX(M25:M36) -> 0 | N37: =AVERAGE(N25:N36) ->  | O37: =MAX(O25:O36) -> 0
J39: =+A8 -> 2025 | K39: mg/Nm3 | L39: Monthly mean of half-hourly averages | M39: Highest half- hourly average | N39: Monthly mean of daily averages | O39: Highest daily average
J40: A3 | K40: Jan
K41: Feb
K42: Mar
K43: Apr
K44: May
K45: Jun
K46: Jul
K47: Aug
K48: Sep
K49: Oct
K50: Nov
A51: Comments : | K51: Dec
K52: Annual | L52: =AVERAGE(L40:L51) ->  | M52: =MAX(M40:M51) -> 0 | N52: =AVERAGE(N40:N51) ->  | O52: =MAX(O40:O51) -> 0
J54: =+A8 -> 2025 | K54: mg/Nm3 | L54: Monthly mean of half-hourly averages | M54: Highest half- hourly average | N54: Monthly mean of daily averages | O54: Highest daily average
J55: A4 | K55: Jan
K56: Feb
K57: Mar
K58: Apr
K59: May
K60: Jun
K61: Jul
K62: Aug
K63: Sep
K64: Oct
K65: Nov
K66: Dec
K67: Annual | L67: =AVERAGE(L55:L66) ->  | M67: =MAX(M55:M66) -> 0 | N67: =AVERAGE(N55:N66) ->  | O67: =MAX(O55:O66) -> 0
J69: =+A8 -> 2025 | K69: mg/Nm3 | L69: Monthly mean of half-hourly averages | M69: Highest half- hourly average | N69: Monthly mean of daily averages | O69: Highest daily average
J70: A5 | K70: Jan
K71: Feb
K72: Mar
K73: Apr
K74: May
K75: Jun
K76: Jul
K77: Aug
K78: Sep
K79: Oct
K80: Nov
K81: Dec
K82: Annual | L82: =AVERAGE(L70:L81) ->  | M82: =MAX(M70:M81) -> 0 | N82: =AVERAGE(N70:N81) ->  | O82: =MAX(O70:O81) -> 0

Sheet CO 95% 10 min
A1: =+'Cover Page'!$B$29 -> Annual Performance Report 2025 | E1: =+'Cover Page'!$B$33 -> Lakeside Energy from Waste Limited
A3: Monitoring of Carbon Monoxide (10-minute avg) | E3: Whole Installation | H3: See Notes in Cell S3 | J3: =+A3 -> Monitoring of Carbon Monoxide (10-minute avg) | O3: Per Combustion Line | Q3: Notes: | S3: Notes:
A5: Please complete this tab for your plant if you have 10-minute average CO ELVs; otherwise, leave it blank and complete the CO 0.5 hourly tab
S7: User to add logic to complete Whole installation, Table A5:H18. From the data in Per Combustion Line, Table K6:Q79, subject to No. of lines installed
A8: =+'Cover Page'!C39 -> 2025 | B8: 10-minute Reference Periods | F8: Daily Reference Periods
A9: mg/Nm3 | B9: 95%ile 10-min avg CO ELV | C9: Highest daily 95%ile 10-min average | D9: Monthly mean of 10-min averages | E9: Highest 10-min average | F9: Daily CO ELV | G9: Monthly mean of daily averages | H9: Highest daily average | K9: =+A8 -> 2025 | L9: mg/Nm3 | M9: Highest daily 95%ile 10-min average | N9: Monthly mean of 10-min averages | O9: Highest 10-min average | P9: Monthly mean of daily averages | Q9: Highest daily average
A10: Jan | B10: 150 | C10: =(M10+M25)/2 -> 76.78 | D10: =(N10+N25)/2 -> 7.675 | E10: 774.22 | F10: 50 | G10: =(P10+P25)/2 -> 7.65 | H10: =(Q10+Q25)/2 -> 15.25 | K10: A1 | L10: Jan | M10: 90.6 | N10: 8.86 | O10: 758.93 | P10: 8.81 | Q10: 16.27
A11: Feb | B11: =+B10 -> 150 | C11: =(M11+M26)/2 -> 99.715 | D11: =(N11+N26)/2 -> 9.955 | E11: =(O11+O26)/2 -> 1153.885 | F11: =+F10 -> 50 | G11: =(P11+P26)/2 -> 10.025 | H11: 23.875 | L11: Feb | M11: 102.23 | N11: 12.57 | O11: 1645.17 | P11: 12.7 | Q11: 28.85
A12: Mar | B12: =+B11 -> 150 | C12: 85.45 | D12: 9.26 | E12: 762.05 | F12: =+F11 -> 50 | G12: =(P12+P27)/2 -> 9.405 | H12: 18.66 | L12: Mar | M12: 87.3 | N12: 11.49 | O12: 883.06 | P12: 11.68 | Q12: 20.45 | S12: Whole Installation table A5:H18:
A13: Apr | B13: 150 | C13: 86.08 | D13: 6.685 | E13: 967.46 | F13: 50 | G13: =(P13+P28)/2 -> 6.63 | H13: 15.44 | L13: Apr | M13: 86.44 | N13: 8.93 | O13: 1346.9 | P13: 8.96 | Q13: 15.71 | S13: Mean: for 10-min and daily periods use average of all operational combustion lines.
A14: May | B14: 150 | C14: 121.905 | D14: 9.305 | E14: 1982.745 | F14: 50 | G14: =(P14+P29)/2 -> 9.375 | H14: 32.45 | L14: May | M14: 110.33 | N14: 11.41 | O14: 876.12 | P14: 11.51 | Q14: 22.39
A15: Jun | B15: 150 | C15: 60.325 | D15: 8.075 | E15: 822.67 | F15: 50 | G15: =(P15+P30)/2 -> 8.08 | H15: 15.475 | L15: Jun | M15: 80.17 | N15: 11.59 | O15: 1084.67 | P15: 11.59 | Q15: 20.89
A16: Jul | B16: 150 | C16: 84.035 | D16: 13.775 | E16: 1196.94 | F16: 50 | G16: =(P16+P31)/2 -> 13.535 | H16: 25.12 | L16: Jul | M16: 110.23 | N16: 17.06 | O16: 1537.36 | P16: 17.01 | Q16: 32.4 | S16: Maximum: for 10-min and daily periods use the highest of all operational combustion lines in any month.
A17: Aug | B17: 150 | C17: 50.915 | D17: 9.65 | E17: 885.11 | F17: 50 | G17: =(P17+P32)/2 -> 9.695 | H17: 21.87 | L17: Aug | M17: 25.06 | N17: 8.89 | O17: 683.59 | P17: 8.91 | Q17: 16.6
A18: Sep | B18: 150 | C18: 75.8 | D18: 11.105 | E18: 1234.925 | F18: 50 | G18: =(P18+P33)/2 -> 11.075 | H18: 18.625 | L18: Sep | M18: 42.26 | N18: 9.84 | O18: 956.61 | P18: 9.78 | Q18: 15.01
A19: Oct | B19: 150 | C19: 88.09 | D19: 12.955 | E19: 1094.6 | F19: 50 | G19: =(P19+P34)/2 -> 12.955 | H19: 24.33 | L19: Oct | M19: 68.87 | N19: 11.42 | O19: 1092.8 | P19: 11.42 | Q19: 21.57
A20: Nov | B20: 150 | C20: 90.425 | D20: 13.225 | E20: 617.51 | F20: 50 | G20: =(P20+P35)/2 -> 13.225 | H20: 24.38 | L20: Nov | M20: 33.7 | N20: 10.32 | O20: 339.44 | P20: 10.32 | Q20: 13.27
A21: Dec | B21: 150 | C21: 79.08 | D21: 11.91 | E21: 791.66 | F21: 50 | G21: =(P21+P36)/2 -> 11.91 | H21: 20.06 | L21: Dec | M21: 37.61 | N21: 10.21 | O21: 552.29 | P21: 10.21 | Q21: 15.9
L22: Annual | M22: =MAX(M10:M21) -> 110.33 | N22: =AVERAGE(N10:N21) -> 11.04916667 | O22: =MAX(O10:O21) -> 1645.17 | P22: =AVERAGE(P10:P21) -> 11.075 | Q22: =MAX(Q10:Q21) -> 32.4
K24: =+A8 -> 2025 | L24: mg/Nm3 | M24: Highest daily 95%ile 10-min average | N24: Monthly mean of 10-min averages | O24: Highest 10-min average | P24: Monthly mean of daily averages | Q24: Highest daily average
K25: A2 | L25: Jan | M25: 62.96 | N25: 6.49 | O25: 789.51 | P25: 6.49 | Q25: 14.23
L26: Feb | M26: 97.2 | N26: 7.34 | O26: 662.6 | P26: 7.35 | Q26: 18.9
L27: Mar | M27: 83.6 | N27: 7.03 | O27: 641.04 | P27: 7.13 | Q27: 16.87
L28: Apr | M28: 85.72 | N28: 4.44 | O28: 588.02 | P28: 4.3 | Q28: 15.17
L29: May | M29: 133.48 | N29: 7.2 | O29: 3089.37 | P29: 7.24 | Q29: 42.51
L30: Jun | M30: 40.48 | N30: 4.56 | O30: 560.67 | P30: 4.57 | Q30: 10.06
L31: Jul | M31: 57.84 | N31: 10.49 | O31: 856.52 | P31: 10.06 | Q31: 17.84
L32: Aug | M32: 76.77 | N32: 10.41 | O32: 1086.63 | P32: 10.48 | Q32: 27.14
L33: Sep | M33: 109.34 | N33: 12.37 | O33: 1513.24 | P33: 12.37 | Q33: 22.24
L34: Oct | M34: 107.31 | N34: 14.49 | O34: 1096.4 | P34: 14.49 | Q34: 27.09
L35: Nov | M35: 147.15 | N35: 16.13 | O35: 895.58 | P35: 16.13 | Q35: 35.49
L36: Dec | M36: 120.55 | N36: 13.61 | O36: 1031.03 | P36: 13.61 | Q36: 24.22
L37: Annual | M37: =MAX(M25:M36) -> 147.15 | N37: =AVERAGE(N25:N36) -> 9.546666667 | O37: =MAX(O25:O36) -> 3089.37 | P37: =AVERAGE(P25:P36) -> 9.518333333 | Q37: =MAX(Q25:Q36) -> 42.51
K39: =+A8 -> 2025 | L39: mg/Nm3 | M39: Highest daily 95%ile 10-min average | N39: Monthly mean of 10-min averages | O39: Highest 10-min average | P39: Monthly mean of daily averages | Q39: Highest daily average
K40: A3 | L40: Jan
L41: Feb
L42: Mar
L43: Apr
L44: May
L45: Jun
L46: Jul
L47: Aug
L48: Sep
L49: Oct
L50: Nov
A51: Comments : | L51: Dec
A52: Environment Agency explanatory note: The 10-minute average ELV is based on the “95th percentile”. In this case this means that 95% of the 10 minute averages in the relevant 24-hour period (i.e. 137) must be below 150 mg/Nm3, and 5% (i.e. 7) are allowed to be any value above 150 mg/Nm3. Whilst we expect operators to minimise CO emissions at all times, it is perfectly acceptable for the value of the maximum 10-minute average to be above 150 mg/Nm3, provided the 95th percentile ELV has been met for that period. | L52: Annual | M52: =AVERAGE(M40:M51) ->  | O52: =MAX(O40:O51) -> 0 | P52: =AVERAGE(P40:P51) ->  | Q52: =MAX(Q40:Q51) -> 0
K54: =+A8 -> 2025 | L54: mg/Nm3 | M54: Highest daily 95%ile 10-min average | N54: Monthly mean of 10-min averages | O54: Highest 10-min average | P54: Monthly mean of daily averages | Q54: Highest daily average
K55: A4 | L55: Jan
L56: Feb
L57: Mar
L58: Apr
L59: May
L60: Jun
L61: Jul
L62: Aug
L63: Sep
L64: Oct
L65: Nov
L66: Dec
L67: Annual | M67: =AVERAGE(M55:M66) ->  | O67: =MAX(O55:O66) -> 0 | P67: =AVERAGE(P55:P66) ->  | Q67: =MAX(Q55:Q66) -> 0
K69: =+A8 -> 2025 | L69: mg/Nm3 | M69: 95%ile 10-min avg maximum | N69: Monthly CO 10-min avg mean | O69: 10-min avg maximum | P69: Monthly daily mean | Q69: Monthly daily maximum
K70: A5 | L70: Jan
L71: Feb
L72: Mar
L73: Apr
L74: May
L75: Jun
L76: Jul
L77: Aug
L78: Sep
L79: Oct
L80: Nov
L81: Dec
L82: Annual | M82: =AVERAGE(M70:M81) ->  | O82: =MAX(O70:O81) -> 0 | P82: =AVERAGE(P70:P81) ->  | Q82: =MAX(Q70:Q81) -> 0

Sheet NH3
A1: =+'Cover Page'!$B$29 -> Annual Performance Report 2025 | E1: =+'Cover Page'!$B$33 -> Lakeside Energy from Waste Limited
A3: Monitoring of Ammnonia emissions | D3: Whole Installation | G3: See Notes in Cell Q3 | J3: =+A3 -> Monitoring of Ammnonia emissions | N3: Per Combustion Line | Q3: Notes:
Q4: User to add logic to complete Whole installation, Table A5:G18. From the data in Per Combustion Line, Table J6:O79, subject to No. of lines installed
A5: =+'Cover Page'!C39 -> 2025 | B5: 1/2 Hourly Reference Periods | E5: Daily Reference Periods
A6: mg/Nm3 | B6: 1/2 hourly NH3 ELV | C6: Monthly mean of half-hourly averages | D6: Highest half- hourly average | E6: Daily NH3 ELV | F6: Monthly mean of daily averages | G6: Highest daily average | J6: =+A5 -> 2025 | K6: mg/Nm3 | L6: Monthly mean of half-hourly averages | M6: Highest half- hourly average | N6: Monthly mean of daily averages | O6: Highest daily average
A7: Jan | B7: None | C7: =(L7+L22)/2 -> 0.315 | D7: =(M7+M22)/2 -> 3.99 | E7: 15 | F7: =(N7+N22)/2 -> 0.315 | G7: =(O7+O22)/2 -> 0.635 | J7: A1 | K7: Jan | L7: 0.25 | M7: 4.23 | N7: 0.25 | O7: 0.57
A8: Feb | B8: =+B7 -> None | C8: =(L8+L23)/2 -> 0.39 | D8: 9.435 | E8: 15 | F8: =(N8+N23)/2 -> 0.39 | G8: 1.245 | K8: Feb | L8: 0.35 | M8: 9.47 | N8: 0.35 | O8: 1.09
A9: Mar | B9: =+B8 -> None | C9: =(L9+L24)/2 -> 0.345 | D9: 3.345 | E9: 15 | F9: =(N9+N24)/2 -> 0.35 | G9: 0.535 | K9: Mar | L9: 0.29 | M9: 3.44 | N9: 0.3 | O9: 0.5 | Q9: Whole Installation table A5:G18:
A10: Apr | B10: None | C10: =(L10+L25)/2 -> 0.515 | D10: 16.375 | E10: 15 | F10: =(N10+N25)/2 -> 0.45 | G10: 2.635 | K10: Apr | L10: 0.37 | M10: 12.78 | N10: 0.33 | O10: 0.84 | Q10: Mean: for 1/2 hourly and daily periods calculate mean of values across all operational combustion lines for the month
A11: May | B11: None | C11: =(L11+L26)/2 -> 0.36 | D11: 3.63 | E11: 15 | F11: =(N11+N26)/2 -> 0.36 | G11: 0.875 | K11: May | L11: 0.33 | M11: 1.94 | N11: 0.33 | O11: 0.55
A12: Jun | B12: None | C12: =(L12+L27)/2 -> 0.335 | D12: 2.965 | E12: 15 | F12: =(N12+N27)/2 -> 0.335 | G12: 0.535 | K12: Jun | L12: 0.31 | M12: 2.83 | N12: 0.31 | O12: 0.44
A13: Jul | B13: None | C13: =(L13+L28)/2 -> 0.23 | D13: 3.44 | E13: 15 | F13: =(N13+N28)/2 -> 0.225 | G13: 0.53 | K13: Jul | L13: 0.34 | M13: 5.41 | N13: 0.33 | O13: 0.65 | Q13: Maximum: for 1/2 hourly and daily periods use the highest value across all operational combustion lines for the month
A14: Aug | B14: None | C14: =(L14+L29)/2 -> 0.175 | D14: 4.385 | E14: 15 | F14: =(N14+N29)/2 -> 0.16 | G14: 0.425 | K14: Aug | L14: 0.21 | M14: 5.07 | N14: 0.19 | O14: 0.39
A15: Sep | B15: None | C15: =(L15+L30)/2 -> 0.21 | D15: 1.79 | E15: 15 | F15: =(N15+N30)/2 -> 0.205 | G15: 0.375 | K15: Sep | L15: 0.28 | M15: 1.63 | N15: 0.27 | O15: 0.45
A16: Oct | B16: None | C16: =(L16+L31)/2 -> 0.24 | D16: 3.235 | E16: 15 | F16: =(N16+N31)/2 -> 0.24 | G16: 0.39 | K16: Oct | L16: 0.31 | M16: 4.05 | N16: 0.31 | O16: 0.46
A17: Nov | B17: None | C17: =(L17+L32)/2 -> 0.245 | D17: 2.98 | E17: 15 | F17: =(N17+N32)/2 -> 0.245 | G17: 0.415 | K17: Nov | L17: 0.3 | M17: 1.91 | N17: 0.3 | O17: 0.48
A18: Dec | B18: None | C18: =(L18+L33)/2 -> 0.205 | D18: 1.975 | E18: 15 | F18: =(N18+N33)/2 -> 0.205 | G18: 0.395 | K18: Dec | L18: 0.27 | M18: 0.82 | N18: 0.27 | O18: 0.43
K19: Annual | L19: =AVERAGE(L7:L18) -> 0.3008333333 | M19: =MAX(M7:M18) -> 12.78 | N19: =AVERAGE(N7:N18) -> 0.295 | O19: =MAX(O7:O18) -> 1.09
J21: =+A5 -> 2025 | K21: mg/Nm3 | L21: Monthly mean of half-hourly averages | M21: Highest half- hourly average | N21: Monthly mean of daily averages | O21: Highest daily average
J22: A2 | K22: Jan | L22: 0.38 | M22: 3.75 | N22: 0.38 | O22: 0.7
K23: Feb | L23: 0.43 | M23: 9.4 | N23: 0.43 | O23: 1.4
K24: Mar | L24: 0.4 | M24: 3.25 | N24: 0.4 | O24: 0.57
K25: Apr | L25: 0.66 | M25: 19.97 | N25: 0.57 | O25: 4.43
K26: May | L26: 0.39 | M26: 5.32 | N26: 0.39 | O26: 1.2
K27: Jun | L27: 0.36 | M27: 3.1 | N27: 0.36 | O27: 0.63
K28: Jul | L28: 0.12 | M28: 1.47 | N28: 0.12 | O28: 0.41
K29: Aug | L29: 0.14 | M29: 3.7 | N29: 0.13 | O29: 0.46
K30: Sep | L30: 0.14 | M30: 1.95 | N30: 0.14 | O30: 0.3
K31: Oct | L31: 0.17 | M31: 2.42 | N31: 0.17 | O31: 0.32
K32: Nov | L32: 0.19 | M32: 4.05 | N32: 0.19 | O32: 0.35
K33: Dec | L33: 0.14 | M33: 3.13 | N33: 0.14 | O33: 0.36
K34: Annual | L34: =AVERAGE(L22:L33) -> 0.2933333333 | M34: =MAX(M22:M33) -> 19.97 | N34: =AVERAGE(N22:N33) -> 0.285 | O34: =MAX(O22:O33) -> 4.43
J36: =+A5 -> 2025 | K36: mg/Nm3 | L36: Monthly mean of half-hourly averages | M36: Highest half- hourly average | N36: Monthly mean of daily averages | O36: Highest daily average
J37: A3 | K37: Jan
K38: Feb
K39: Mar
K40: Apr
K41: May
K42: Jun
K43: Jul
K44: Aug
K45: Sep
K46: Oct
K47: Nov
A48: Comments : | K48: Dec
A49: An indicated ELV value of zero in the table above means that no ammonia limit is/was set in the permit. | K49: Annual | L49: =AVERAGE(L37:L48) ->  | M49: =MAX(M37:M48) -> 0 | N49: =AVERAGE(N37:N48) ->  | O49: =MAX(O37:O48) -> 0
J51: =+A5 -> 2025 | K51: mg/Nm3 | L51: Monthly mean of half-hourly averages | M51: Highest half- hourly average | N51: Monthly mean of daily averages | O51: Highest daily average
J52: A4 | K52: Jan
K53: Feb
K54: Mar
K55: Apr
K56: May
K57: Jun
K58: Jul
K59: Aug
K60: Sep
K61: Oct
K62: Nov
K63: Dec
K64: Annual | L64: =AVERAGE(L52:L63) ->  | M64: =MAX(M52:M63) -> 0 | N64: =AVERAGE(N52:N63) ->  | O64: =MAX(O52:O63) -> 0
J66: =+A5 -> 2025 | K66: mg/Nm3 | L66: Monthly mean of half-hourly averages | M66: Highest half- hourly average | N66: Monthly mean of daily averages | O66: Highest daily average
J67: A5 | K67: Jan
K68: Feb
K69: Mar
K70: Apr
K71: May
K72: Jun
K73: Jul
K74: Aug
K75: Sep
K76: Oct
K77: Nov
K78: Dec
K79: Annual | L79: =AVERAGE(L67:L78) ->  | M79: =MAX(M67:M78) -> 0 | N79: =AVERAGE(N67:N78) ->  | O79: =MAX(O67:O78) -> 0

Sheet Template changes log
A1: Log of changes to template (Environment Agency use only)
A3: Date | B3: Description of change | C3: New version number and date
A4: 2024-01-16 | B4: Air (periodic) tab: corrected default O2 reference from 6 to 11% | C4: Version 23.5a (for incinerators) - 16/01/2024
A5: 2024-09-23 | B5: Air (periodic) tab: corrected symbol for Thallium to Tl
A6: 2024-09-23 | B6: Air (periodic) tab: removed last year's references to different emission limit values applying from 03/12/23 and updated all relevant ELVs
A7: 2024-09-23 | B7: Tabs for continuously monitored pollutants (HCl, SO2 etc.): changed terminology in table headings to improve clarity
A8: 2024-09-23 | B8: Tabs for continuously monitored pollutants (HCl, SO2 etc.): removed last year's references to different emission limit values applying from 03/12/23 and updated all relevant ELVs
A9: 2024-09-23 | B9: Perf 1 tab: updated formula for water usage to report m3 rather than litres and corrected error with formula copying operator name
A10: 2024-09-23 | B10: Operational Summary tab: table added on start-ups and shut-downs
A11: 2024-09-23 | B11: Operational Summary tab: table added on dioxins and mercury protocols
A12: 2024-09-23 | B12: Operational Summary tab: table added on AST, QAL 2 and calibration functions
A13: 2024-09-23 | B13: CO2 N2O tab: various changes made to notes to reflect the fact that most plants should now have calibrated CEMS and flow meters + some have C14 samplers and more up to date industry data | C13: Version 24a (for incinerators) - 23/09/24
A14: 2024-11-08 | B14: CO2 N2O tab: Changed the N2O CO2 equivalence factor from 298 to 265 in line with recently updated government greenhouse gas figures: https://www.gov.uk/government/publications/greenhouse-gas-reporting-conversion-factors-2024
A15: 2024-11-08 | B15: CO2 N2O tab: Added an additional requirement for municipal EfW plants to state the yearly average biogenic percentage of the waste by mass, and reference to a document which sets out a methodology for calculating NCV of waste from the results of C14 sampling.
A16: 2024-11-08 | B16: Permit Compliance tab: Two additional columns added + explanatory notes to the table entitled "Summary of non-compliances under the permit" to allow CCS scores to be stated where relevant.
A17: 2024-11-08 | B17: Residue Quality tab: Note added explaining application of TOC and LOI limits and asking operators to report both metrics where measured. | C17: Version 24.1a (for incinerators) - 08/11/24
A18: 2024-11-27 | B18: Operational Summary tab: table added on start-ups and shut-downs | C18: Version 24.2a (for incinerators) - 27/11/24
A19: 2025-11-27 | B19: Cover Page: Print as PDF and Print Report and pdf buttons deleted and blank columns removed; contents page deleted | C19: Version 25.1a (for incinerators) - 27/11/25
A20: 2025-11-27 | B20: Residue Quality tab renamed to "Residues", and Summary of residue handling table moved from Operational Summary tab to Residues tab.
A21: 2025-11-27 | B21: Various changes made to the Operational Data tab including • Reformatting of the rows under the Operational data heading (Rows 3-8) to make it clearer what information is required. • Amendment of the rows under the Energy Usage / Export heading (Rows 26-32) to calculate an “indicative parasitic load” (now excluding energy imported) • Amendment of the unit for gas usage from cubic feet to cubic metres (Row 50) • Some amendments to the first 2 notes and other minor edits • Deleted "Overall Availability, mean avg. of all lines, hrs" row
A22: 2025-11-27 | B22: Operational Summary tab: Note added requiring all emergency shut-downs be listed, irrespective of whether or not they were reportable.
A23: 2025-11-27 | B23: CO2 N2O tab: Note added to ask operators to ensure that relevant data reported here matches that which will be submitted under the Pollution Inventory
